Workbook

Sheet Summary
A1: Count of UFC / BDA / OPA | B1: Labels
A2: UFC Region | B2: UFC | C2: BDA | D2: OPA | E2: Grand Total
A3: Close | B3: 0 | C3: 1 | D3: 1 | E3: 2
A4: open | B4: 167 | C4: 37 | D4: 32 | E4: 236
A5: Grand Total | B5: 167 | C5: 38 | D5: 33 | E5: 238

Sheet UFC
A1: Title | B1: UFC / BDA / OPA | C1: Branc Code | D1: Location | E1: Address1 | F1: Address2 | G1: Address3 | H1: City | I1: State | J1: PinCode | K1: Telephone | L1: Fax | M1: IsActive | N1: Modified | O1: Email | P1: Open/Close Status
A2: - | B2: UFC | C2: BN03 | D2: Bangalore | E2: No. 28 First Floor | F2: Centenary Building | G2: M G Road | H2: Bangalore | I2: Karnataka | J2: 560001 | K2: 080-25593176 | L2: - | M2: TRUE | N2: - | O2: utibangaloreufc@Kfintech.com | P2: open
A3: - | B3: UFC | C3: JN19 | D3: Bangalore-Jayanagar | E3: First Floor No. 76 (Old No. 756) | F3: 10th Main Road 4th Block | G3: Jayanagar | H3: Bangalore | I3: Karnataka | J3: 560011 | K3: 080-22440837 | L3: - | M3: TRUE | N3: - | O3: utijayanagarufc@Kfintech.com | P3: open
A4: - | B4: UFC | C4: MW17 | D4: Bangalore-Malleswaram | E4: No-60 Maruthi Plaza | F4: 18Th Cross 8Th Main | G4: Malleswaram | H4: Bangalore | I4: Karnataka | J4: 560055 | K4: 080-23340672 | L4: - | M4: TRUE | N4: - | O4: utimalleswaramufc@Kfintech.com | P4: open
A5: 72 | B5: UFC | C5: BG40 | D5: Belgaum | E5: R.K. Marg 5Th Cross | F5: Opp Subhash Market | G5: Hindwadi | H5: Belgaum | I5: Karnataka | J5: 590011 | K5: 08312 421625 | L5: - | M5: TRUE | N5: - | O5: utibelgaumufc@Kfintech.com | P5: open
A6: 73 | B6: UFC | C6: BY21 | D6: Bellary | E6: Sri Basava Square | F6: 2nd Cross Gandhinagar | G6: Gandhi Nagar Bellary | H6: Bellary | I6: Karnataka | J6: 583101 | K6: 08392 255634/635 | L6: - | M6: TRUE | N6: - | O6: utibellaryufc@Kfintech.com | P6: open
A7: 83 | B7: UFC | C7: DV15 | D7: Davangere | E7: #998 | F7: Satya Sadana | G7: K B ExtnLawyers Road | H7: Davangere | I7: Karnataka | J7: 577002 | K7: 08192-233566 | L7: - | M7: TRUE | N7: - | O7: utidavangereufc@Kfintech.com | P7: open
A8: 136 | B8: UFC | C8: GB62 | D8: Gulbarga | E8: F8 1St Floor Asian Complex | F8: Near City Bus Stand Head Post Office Road | G8: Super Market | H8: Gulbarga | I8: Karnataka | J8: 585101 | K8: 08472-223666 | L8: - | M8: TRUE | N8: - | O8: utigulbargaufc@Kfintech.com | P8: open
A9: - | B9: UFC | C9: HU50 | D9: Hubli | E9: 1St Floor Kalburgi Square | F9: Near Desai Cross Tb Road | G9: - | H9: Hubli | I9: Karnataka | J9: 580029 | K9: (0836) 2363963/2362061/2363188 | L9: - | M9: TRUE | N9: - | O9: utihubliufc@Kfintech.com | P9: open
A10: - | B10: UFC | C10: MN38 | D10: Mangalore | E10: Door NO - 14-3-190 | F10: 1st Floor Souza Arcade | G10: Near Jyothi Talkies | H10: Mangalore | I10: Karnataka | J10: 575001 | K10: 0824-2444112 | L10: - | M10: TRUE | N10: - | O10: utimangaloreufc@Kfintech.com | P10: open
A11: 104 | B11: UFC | C11: MR75 | D11: Margao | E11: Shop No: G6 & G7 | F11: Jeevottam Sundra 81 | G11: Primitive Hospicio Road Bhd. Cine Metropole | H11: Margao | I11: Goa | J11: 403601 | K11: 0832- 6484613 | L11: - | M11: TRUE | N11: - | O11: utimargoaufc@Kfintech.com | P11: open
A12: - | B12: UFC | C12: MY77 | D12: Mysore | E12: UTI Financial Centre | F12: No.11 Kamakshi Hospital Road 8th Cross | G12: Saraswathipuram | H12: Mysore | I12: Karnataka | J12: 570009 | K12: 8212344425 | L12: - | M12: TRUE | N12: - | O12: utimysoreufc@Kfintech.com | P12: open
A13: - | B13: UFC | C13: GO37 | D13: Panjim | E13: Edc House | F13: Mezzanine Floor | G13: Dr A B Marg | H13: Panaji Goa | I13: Goa | J13: 403001 | K13: 0832 2230064 | L13: - | M13: TRUE | N13: - | O13: utipanajiufc@Kfintech.com | P13: open
A14: - | B14: OPA | C14: SH59 | D14: Shimoga | E14: JAYARAMA NILAYA | F14: 2ND CORSS | G14: MISSION COMPOUND | H14: Shimoga | I14: Karnataka | J14: 577201 | K14: 08182 295491 | L14: - | M14: TRUE | N14: - | O14: mfsshimoga@Kfintech.com | P14: Open
A15: Shri. Walter Cyril Pinto | B15: BDA | C15: UP04 | D15: Udupi | E15: Vishnu Prakash Bldg | F15: Court Road | G15: Feather Communication | H15: Udipi | I15: Karnataka | J15: 576101 | K15: 8202521194 | L15: - | M15: TRUE | N15: - | O15: mfsudipicr@kfintech.com | P15: open
A16: - | B16: UFC | C16: SH59 | D16: Shimogaa | E16: 321 Ground Floor | F16: P Square 5th Parallel Road | G16: Durgigudi | H16: Shivamogga | I16: Karnataka | J16: 577201 | K16: 08182 – 295677/277703 | L16: - | M16: TRUE | N16: - | O16: Kfpl.utishivamogaaufc@Kfintech.com | P16: open
A17: - | B17: UFC | C17: AH01 | D17: Ahmedabad | E17: 2ND FLOOR IFCI BHAVAN | F17: B/H TANISHQ SHOW ROOM | G17: C G ROAD | H17: Ahmedabad | I17: Gujarat | J17: 380006 | K17: 9081903024 | L17: - | M17: TRUE | N17: - | O17: utiahmedabadufc@Kfintech.com | P17: open
A18: - | B18: UFC | C18: AD63 | D18: Anand | E18: 12 A First Floor Chitrangna Complex | F18: First Floor | G18: V V Nagar Road | H18: Anand | I18: Gujarat | J18: 388001 | K18: 9081903039 | L18: - | M18: TRUE | N18: - | O18: utianandufc@Kfintech.com | P18: open
A19: - | B19: UFC | C19: BR04 | D19: Baroda | E19: G 6 & G 7 Land Mark Building | F19: Race Course Road | G19: Transpeck Centre | H19: Baroda | I19: Gujarat | J19: 390007 | K19: 9725013177 | L19: - | M19: TRUE | N19: - | O19: utibarodaufc@Kfintech.com | P19: open
A20: 74 | B20: UFC | C20: BU67 | D20: Bharuch | E20: 103/104/105 Aditya Complex | F20: 1St Floor | G20: Near Kashak Circle | H20: Bharuch | I20: Gujarat | J20: 392001 | K20: 02642 225460 | L20: - | M20: TRUE | N20: - | O20: utibharuchufc@Kfintech.com | P20: open
A21: - | B21: UFC | C21: BV68 | D21: Bhavnagar | E21: 6/7 Ground Floor Shree Complex | F21: Crecent Circle | G21: Opp Gandhi Smruti | H21: Bhavnagar | I21: Gujarat | J21: 364001 | K21: 0278-3201307 | L21: - | M21: TRUE | N21: - | O21: utibhavnagarufc@Kfintech.com | P21: open
A22: - | B22: UFC | C22: BJ01 | D22: Bhuj | E22: 13 & 14 First Floor | F22: Jubilee Circle Banker'S Colony | G22: Opp All India Radio | H22: Bhuj | I22: Gujarat | J22: 370001 | K22: 9081903026 | L22: - | M22: TRUE | N22: - | O22: utibhujufc@Kfintech.com | P22: open
A23: - | B23: OPA | C23: GD16 | D23: Gandhidham | E23: Shop # 12 Shree Ambica Arcade Plot # 300 | F23: Ward 12. Opp. CG High School | G23: Near HDFC Bank | H23: Gandhidham | I23: Gujarat | J23: 370201 | K23: 9081903027 | L23: - | M23: TRUE | N23: - | O23: mfsgandhidham@Kfintech.com | P23: Open
A24: 87 | B24: UFC | C24: GA01 | D24: Gandhinagar | E24: Dvij elite First Floor | F24: Plot No 1522 Near Apna Bazar | G24: Sector-6 | H24: Gandhi Nagar | I24: Gujarat | J24: 382006 | K24: 079-23240462 | L24: - | M24: TRUE | N24: - | O24: utigandhinagarufc@Kfintech.com | P24: open
A25: - | B25: UFC | C25: JN12 | D25: Jamnagar | E25: 102-Madhav Squre | F25: Opp .Avantika complex | G25: Nr. lal bunglow | H25: Jamnagar | I25: Gujarat | J25: 361001 | K25: 9081903043 | L25: - | M25: TRUE | N25: - | O25: utijamnagarufc@Kfintech.com | P25: open
A26: 111 | B26: UFC | C26: NV40 | D26: Navsari | E26: 1/4 Chinmay Arcade | F26: Tower Road | G26: Near Sattapir Road | H26: Navsari | I26: Gujarat | J26: 396445 | K26: 02637 280528 | L26: - | M26: TRUE | N26: - | O26: utinavsariufc@Kfintech.com | P26: open
A27: - | B27: UFC | C27: RJ61 | D27: Rajkot | E27: 1st Floor venkatesh plaza Opp. BKC Ground | F27: DR. Radhakrishna road off yagnik road | G27: - | H27: Rajkot | I27: Gujarat | J27: 360001 | K27: 0281-2440701 | L27: - | M27: TRUE | N27: - | O27: utirajkotufc@Kfintech.com | P27: open
A28: - | B28: UFC | C28: SU19 | D28: Surat | E28: B-107/108 Tirupati Plaza | F28: Athwa Gate | G28: Near Collector Office | H28: Surat | I28: Gujarat | J28: 395001 | K28: 0261 4006099 | L28: - | M28: TRUE | N28: - | O28: utisuratufc@Kfintech.com | P28: open
A29: - | B29: UFC | C29: VP95 | D29: Vapi | E29: 1st Floor Office No: 102 & 103 | F29: SAGA CASA Complex | G29: Vapi-Daman Main Road Opp. Royal Twin Tower | H29: Chala Vapi | I29: Gujarat | J29: 396191 | K29: 9081903029 | L29: - | M29: TRUE | N29: - | O29: utivapiufc@Kfintech.com | P29: open
A30: - | B30: BDA | C30: SB85 | D30: Sabarkantha (Himmatnagar) | E30: B-1 Deshkanta Memon Complex | F30: Opp Power House | G30: Hajipura | H30: Himatnagar | I30: Gujarat | J30: 383001 | K30: 7818821819 | L30: - | M30: TRUE | N30: 2014-08-13 | O30: mfsSabarkanthacr@kfintech.com | P30: open
A31: - | B31: OPA | C31: ND85 | D31: Nadiad | E31: 311-3rd Floor City Center | F31: Near Paras Circle | G31: - | H31: Nadiad | I31: Gujarat | J31: 387001 | K31: 0268-2563245 | L31: - | M31: TRUE | N31: 2016-04-01 | O31: mfsnadiad@Kfintech.com | P31: Open
A32: 92 | B32: UFC | C32: JD01 | D32: Junagadh | E32: UTI Financial Center | F32: 1st Floor Shop No 101102113 & 114 Maerry Gold 2 | G32: Above Dominos Pizza Opp Bahaudin colleage rooad | H32: Junagadh | I32: Gujarat | J32: 362001 | K32: 0285-2672678 | L32: - | M32: TRUE | N32: 2019-03-26 | O32: Kfpl.utijunagadhufc@Kfintech.com | P32: open
A33: 135 | B33: UFC | C33: VD40 | D33: Valsad | E33: UTI Financial Center | F33: 1st Floor103 Signature Building | G33: Opp Yes Bank Dharampur RoadHalar. | H33: Valsad | I33: Gujarat | J33: 396001 | K33: 02632-222012 | L33: - | M33: TRUE | N33: - | O33: Kfpl.utivalsadufc@Kfintech.com | P33: open
A34: - | B34: UFC | C34: MD17 | D34: Chennai | E34: Capital Tower Ground Floor | F34: 180 Kodambakkam High Road | G34: Nungambakkam | H34: Chennai | I34: Tamil Nadu | J34: 600034 | K34: 044 28516333 | L34: - | M34: TRUE | N34: - | O34: utichennaiufc@Kfintech.com | P34: open
A35: - | B35: UFC | C35: AN13 | D35: Chennai-Anna Nagar | E35: W-123 | F35: 3Rd Avenue | G35: Anna Nagar | H35: Chennai | I35: Tamil Nadu | J35: 600040 | K35: 044-42615016 | L35: - | M35: TRUE | N35: - | O35: utiannanagarufc@Kfintech.com | P35: open
A36: - | B36: UFC | C36: TN14 | D36: Chennai-T Nagar | E36: No/29 | F36: North Usman Road | G36: Tnagar | H36: Chennai | I36: Tamil Nadu | J36: 600017 | K36: 044-42121648 | L36: - | M36: TRUE | N36: - | O36: utitnagarufc@Kfintech.com | P36: open
A37: - | B37: UFC | C37: CL69 | D37: Calicut (Kozhikode) | E37: Aydeed Complex | F37: YMCA Cross Road | G37: Kozhikode | H37: Calicut | I37: Kerala | J37: 673001 | K37: (0495) 2367284 | L37: - | M37: TRUE | N37: - | O37: uticalicutufc@Kfintech.com | P37: open
A38: - | B38: UFC | C38: CO08 | D38: Cochin | E38: Ground Floor Palackal Building Chittoor Road | F38: Iyyattil Junction | G38: Opp Kavitha International Hotel | H38: Ernakulam | I38: Kerala | J38: 682011 | K38: 0484 - 2380259 | L38: - | M38: TRUE | N38: - | O38: uticochinufc@Kfintech.com | P38: open
A39: 99 | B39: UFC | C39: KT75 | D39: Kottayam | E39: 17/480-FMuringampadam ChambersGround Floor | F39: Cms College Road | G39: Cms College Jn | H39: Kottayam | I39: Kerala | J39: 686001 | K39: 0481-2560734 | L39: - | M39: TRUE | N39: - | O39: utikottayamufc@Kfintech.com | P39: open
A40: - | B40: OPA | C40: PG35 | D40: Palghat | E40: No: 20 & 21 | F40: Metro Complex H.P.O.Road Palakkad | G40: H.P.O.Road | H40: Palakkad | I40: Kerala | J40: 678001 | K40: 9895968533 | L40: - | M40: TRUE | N40: - | O40: mfspalghat@Kfintech.com | P40: Close
A41: - | B41: UFC | C41: TU51 | D41: Trichur | E41: 26/621-622 Kollannur Devassy Bldg | F41: Town Hall Road | G41: Near Paramekavu Temple | H41: Thrissur | I41: Kerala | J41: 680020 | K41: 0487-2331259 | L41: 2331496 | M41: TRUE | N41: - | O41: utitrichurufc@Kfintech.com | P41: open
A42: - | B42: UFC | C42: TV52 | D42: Trivandrum | E42: T C 15/49 ( 2 ) | F42: 1st Floor, Saran Chambers | G42: Vellayambalam | H42: Thiruvananthapuram | I42: Kerala | J42: 675010 | K42: (0471) 2723674/2721415/2720310 | L42: - | M42: TRUE | N42: - | O42: utitrivandrumufc@Kfintech.com | P42: open
A43: - | B43: OPA | C43: KM12 | D43: Kollam | E43: SREE VIGNESWARA BHAVAN | F43: SHASTRI JUNCTION | G43: - | H43: Kollam | I43: Kerala | J43: 691001 | K43: 474-2747055 | L43: - | M43: TRUE | N43: - | O43: mfskollam@Kfintech.com | P43: Open
A44: - | B44: BDA | C44: AN08 | D44: Ankamaly | E44: Parayil Agencies | F44: Ankamaly South P O | G44: Ankamaly | H44: Cochin | I44: Kerala | J44: 683573 | K44: 0484 - 2452560 | L44: - | M44: TRUE | N44: 2014-12-23 | O44: mfsangamalycr@kfintech.com | P44: open
A45: - | B45: OPA | C45: KU29 | D45: Kannur | E45: 2ND FLOOR | F45: GLOBAL VILLAGE | G45: BANK ROAD | H45: Kannur | I45: Kerala | J45: =VLOOKUP(Table1[[#This Row],[Location]],'[1]MFS Add.List'!$D$1:$Q$178,14,0) -> 670001 | K45: 0497 - 2764190 | L45: - | M45: TRUE | N45: 2015-08-03 | O45: mfskannur@Kfintech.com | P45: Open
A46: - | B46: OPA | C46: TI76 | D46: Tiruvalla | E46: 2Nd FloorErinjery Complex | F46: Ramanchira | G46: Opp Axis Bank | H46: Thiruvalla | I46: Kerala | J46: =VLOOKUP(Table1[[#This Row],[Location]],'[1]MFS Add.List'!$D$1:$Q$178,14,0) -> 689107 | K46: 04862-211209 | L46: - | M46: TRUE | N46: 2015-08-14 | O46: mfstiruvalla@Kfintech.com | P46: Open
A47: - | B47: BDA | C47: AY35 | D47: Alleppy | E47: MJM Building | F47: Mullakal | G47: Alappuzha | H47: Alleppy | I47: Kerala | J47: 688011 | K47: 0477 2251110 | L47: - | M47: TRUE | N47: 2015-09-01 | O47: alleppycr@Kfintech.com | P47: open
A48: - | B48: UFC | C48: CB06 | D48: Coimbatore | E48: UTI Financial Centre "R G Chambers" First Floor | F48: 1023 Avinashi Road | G48: Coimbatore | H48: Coimbatore | I48: Tamil Nadu | J48: 641018 | K48: 0422 4393918 | L48: - | M48: TRUE | N48: - | O48: uticoimbatoreufc@Kfintech.com | P48: open
A49: - | B49: OPA | C49: ER70 | D49: Erode | E49: Address No 38/1 Ground Floor | F49: Sathy Road,(VCTV Main Road) | G49: Sorna Krishna Complex | H49: Erode | I49: Tamil Nadu | J49: =VLOOKUP(Table1[[#This Row],[Location]],'[1]MFS Add.List'!$D$1:$Q$178,14,0) -> 638003 | K49: 0424-4021212 | L49: - | M49: TRUE | N49: - | O49: mfserode@Kfintech.com | P49: Open
A50: - | B50: UFC | C50: MR31 | D50: Madurai | E50: No. 3 West Marret Street | F50: LIC Building - 1st Floor | G50: Opposit to Railway Station | H50: Madurai | I50: Tamil Nadu | J50: 625001 | K50: (0452) 2338186/2333317 | L50: - | M50: TRUE | N50: - | O50: utimaduraiufc@Kfintech.com | P50: open
A51: - | B51: OPA | C51: NK25 | D51: Nagerkoil | E51: HNO 45 | F51: 1st Floor | G51: East Car Street | H51: Nagercoil | I51: Tamil Nadu | J51: =VLOOKUP(Table1[[#This Row],[Location]],'[1]MFS Add.List'!$D$1:$Q$178,14,0) -> 629001 | K51: 04652 - 233552 | L51: - | M51: TRUE | N51: - | O51: mfsnagarkoil@Kfintech.com | P51: Open
A52: 123 | B52: UFC | C52: SA81 | D52: Salem | E52: No. 20 Ramakrishna Road | F52: Above Federal Bank | G52: - | H52: Salem | I52: Tamil Nadu | J52: 636007 | K52: 0427 4040273 | L52: - | M52: TRUE | N52: - | O52: utisalemufc@Kfintech.com | P52: open
A53: 132 | B53: UFC | C53: TV50 | D53: Tirunelveli | E53: 1st Floor 10/4 Thaha Plaza | F53: South Bypass Road | G53: Vannarpet | H53: Tirunelveli | I53: Tamil Nadu | J53: 627003 | K53: 0462 2502775 | L53: - | M53: TRUE | N53: - | O53: utitirunelveliufc@Kfintech.com | P53: open
A54: - | B54: UFC | C54: TU49 | D54: Tirupur | E54: 1st Floor Tip Top Business Centre | F54: (Near Railway Station Rear Entrance) | G54: 104-109 College Road | H54: Tirupur | I54: Tamil Nadu | J54: 641602 | K54: 0421 4243918 | L54: - | M54: TRUE | N54: - | O54: utitirupurufc@Kfintech.com | P54: open
A55: - | B55: UFC | C55: TR30 | D55: Trichy | E55: No 19/1 Kingston Park | F55: Puthur High Road | G55: Opp. Aruna Theatre Puthur woriyur | H55: Tiruchirapalli | I55: Tamil Nadu | J55: 620017 | K55: 0431 4040272 | L55: - | M55: TRUE | N55: - | O55: utitrichyufc@Kfintech.com | P55: open
A56: - | B56: OPA | C56: TC40 | D56: Tuticorin | E56: 4 - B A34 - A37 | F56: Mangalmal Mani Nagar | G56: Opp. Rajaji Park Palayamkottai Road | H56: Tuticorin | I56: Tamil Nadu | J56: =VLOOKUP(Table1[[#This Row],[Location]],'[1]MFS Add.List'!$D$1:$Q$178,14,0) -> 628003 | K56: 0461-2334603 | L56: - | M56: TRUE | N56: - | O56: mfstuticorin@Kfintech.com | P56: Open
A57: - | B57: UFC | C57: VL88 | D57: Vellore | E57: SAI RAJYA" | F57: First Floor Back side | G57: No.14Anna Salai (Officers line) | H57: Vellore | I57: Tamil Nadu | J57: 632001 | K57: 0416 4200901 | L57: - | M57: TRUE | N57: - | O57: utivelloreufc@Kfintech.com | P57: open
A58: Shri. A Giri | B58: BDA | C58: KB85 | D58: Kumbakonam | E58: 4 & 5 KVJ Complex | F58: - | G58: 49 T S R Big Street | H58: Kumbakonam | I58: Tamilnadu | J58: 612001 | K58: 0435- 2431063 | L58: - | M58: TRUE | N58: 2014-08-13 | O58: mfsKumbakonamcr@kfintech.com | P58: open
A59: 117 | B59: UFC | C59: PO50 | D59: Pondicherry | E59: No. 20 Savitha Plaza | F59: 100 Feet Road | G59: Anna Nagar | H59: Pondicherry | I59: Pondicherry | J59: 605005 | K59: 0413 2203369 | L59: - | M59: TRUE | N59: 2019-10-18 | O59: utipondicherryufc@Kfintech.com | P59: open
A60: - | B60: UFC | C60: AG01 | D60: Agartala | E60: Surjya Chowmuhani | F60: H G B Road | G60: - | H60: Agartala | I60: Tripura | J60: 799001 | K60: 0381-2383995 | L60: - | M60: TRUE | N60: 2013-06-01 | O60: utiagartalaufc@Kfintech.com | P60: open
A61: - | B61: UFC | C61: GH60 | D61: Guwahati | E61: Hindustan Building 1St Floor | F61: - | G61: Opp Nakkata Pukhuri | H61: Guwahati | I61: Assam | J61: 781001 | K61: 8811033374 | L61: - | M61: TRUE | N61: 2013-06-01 | O61: utiguwahatiufc@Kfintech.com | P61: open
A62: - | B62: UFC | C62: SH71 | D62: Shillong | E62: Saket Bhawan | F62: Police Bazar | G62: Abov Mohnni Store | H62: Shillong | I62: Meghalaya | J62: 793001 | K62: 03842-230147 | L62: - | M62: TRUE | N62: 2013-06-01 | O62: Utishillongufc@Kfintech.com | P62: open
A63: 128 | B63: UFC | C63: SL02 | D63: Silchar | E63: Uti Asset Managemant Company Ltd | F63: N.N. Dutta Road | G63: - | H63: Silchar | I63: Assam | J63: 788001 | K63: 03842-230147 | L63: - | M63: TRUE | N63: 2013-06-01 | O63: utisilcharufc@Kfintech.com | P63: open
A64: - | B64: UFC | C64: TS01 | D64: Tinsukia | E64: A – 2 Ward No : 6 | F64: Chirapatty Road | G64: - | H64: Tinsukia | I64: Assam | J64: 786125 | K64: 0374-2341277 | L64: - | M64: TRUE | N64: 2013-06-01 | O64: utitinsukiaufc@Kfintech.com | P64: open
A65: Shri. Sajal Nandi | B65: BDA | C65: NO01 | D65: Nagaon | E65: Adp Road | F65: Christian Patty | G65: Nagaon | H65: Assam | I65: Assam | J65: 782001 | K65: 03672-233016 | L65: - | M65: TRUE | N65: 2013-06-01 | O65: mfsnagaoncr@kfintech.com | P65: open
A66: Shri. Uday Chatterjee | B66: BDA | C66: BG85 | D66: Bongaigaon | E66: Natun Para | F66: College Road | G66: P.O. Bongaigaon | H66: Bongaigaon | I66: Assam | J66: 783380 | K66: 9706058003 | L66: - | M66: TRUE | N66: 2014-08-13 | O66: mfsBongaigaoncr@kfintech.com | P66: open
A67: 91 | B67: UFC | C67: JH85 | D67: Jorhat | E67: UTI Financial Center | F67: 1st Floor Hotel President Complex Thana Road | G67: Gar Ali | H67: Jorhat Assam | I67: Assam | J67: 785001 | K67: 0376 – 2300024/25 | L67: - | M67: TRUE | N67: - | O67: Kfpl.johrat@Kfintech.com | P67: open
A68: Shri. Vivek R Kalaskar | B68: OPA | C68: NN22 | D68: Nanded | E68: Shop No.4 | F68: Santakripa Market G G Road | G68: Opp.Bank Of India | H68: Nanded | I68: Maharashthra | J68: =VLOOKUP(Table1[[#This Row],[Location]],'[1]MFS Add.List'!$D$1:$Q$178,14,0) -> 431601 | K68: 02462-237885 | L68: - | M68: TRUE | N68: - | O68: mfsnanded@Kfintech.com | P68: Open
A69: - | B69: OPA | C69: AP89 | D69: Ananthapur | E69: Plot No: 12-313, | F69: Balaji Towers, Suryanagar | G69: Ananthapur Village | H69: Anantapur | I69: Andhra Pradesh | J69: =VLOOKUP(Table1[[#This Row],[Location]],'[1]MFS Add.List'!$D$1:$Q$178,14,0) -> 515001 | K69: 08554-244449 | L69: - | M69: TRUE | N69: - | O69: mfsananthapur@Kfintech.com | P69: Open
A70: - | B70: OPA | C70: EL03 | D70: Eluru | E70: DNO-23A-7-72/73K K S PLAZA MUNUKUTLA VARI STREET | F70: OPP ANDHRA HOSPITALS | G70: R R PETA | H70: Eluru | I70: Andhra Pradesh | J70: =VLOOKUP(Table1[[#This Row],[Location]],'[1]MFS Add.List'!$D$1:$Q$178,14,0) -> 534002 | K70: 08812-227851 / 52 / 53 / 54 | L70: - | M70: TRUE | N70: - | O70: mfseluru@Kfintech.com | P70: Open
A71: - | B71: UFC | C71: GU71 | D71: Guntur | E71: Door No. 31-9-832 | F71: 9th Line, Second Cross | G71: Arundelpet | H71: Guntur | I71: Andhra Pradesh | J71: 522002 | K71: (0863) 2333818/2333819 | L71: - | M71: TRUE | N71: - | O71: utigunturufc@Kfintech.com | P71: open
A72: - | B72: OPA | C72: HY34 | D72: Hyderabad | E72: No:303, Vamsee Estates | F72: Opp: Bigbazaar | G72: Ameerpet | H72: Hyderabad | I72: Telangana | J72: =VLOOKUP(Table1[[#This Row],[Location]],'[1]MFS Add.List'!$D$1:$Q$178,14,0) -> 500016 | K72: 040-44857874 / 75 / 76 | L72: - | M72: TRUE | N72: - | O72: mfshyderabad@Kfintech.com | P72: Open
A73: - | B73: UFC | C73: SC16 | D73: Hyderabad -Sec - bad | E73: 10-2-99/1 Ground Floor | F73: Sterling Grand Cvk Road No:3 | G73: West Marred Pally | H73: Secunderabad | I73: Telangana | J73: 500026 | K73: 040-23433118 | L73: - | M73: TRUE | N73: - | O73: utisecunderabadufc@Kfintech.com | P73: open
A74: - | B74: UFC | C74: AB10 | D74: Hyderabad-Abids | E74: 4-1-898 1St Floor | F74: Oasis Plaza | G74: Tilak Road Abids | H74: Hyderabad | I74: Telangana | J74: 500001 | K74: 040-24750381 | L74: - | M74: TRUE | N74: - | O74: utihyderabadufc@Kfintech.com | P74: open
A75: - | B75: UFC | C75: PJ15 | D75: Hyderabad-Punjagutta | E75: 6-3-679 I Floor | F75: Elite Plaza | G75: Punjagutta | H75: Hyderabad | I75: Telangana | J75: 500082 | K75: 040-23431595 | L75: - | M75: TRUE | N75: - | O75: utipanjaguttaufc@Kfintech.com | P75: open
A76: - | B76: UFC | C76: KD10 | D76: Kadapa | E76: 2/790 Sairam Towers | F76: Nagaraj Pet | G76: Near Kotireddy Womens College | H76: Kadapa | I76: Andhra Pradesh | J76: 516001 | K76: 08562-222240 | L76: - | M76: TRUE | N76: - | O76: utikadapaufc@Kfintech.com | P76: open
A77: Shri. G Ramprasad | B77: OPA | C77: KA03 | D77: Karimnagar | E77: 2nd ShutterHNo. 7-2-607 Sri Matha | F77: Complex Mankammathota | G77: - | H77: Karimnagar | I77: Telangana | J77: =VLOOKUP(Table1[[#This Row],[Location]],'[1]MFS Add.List'!$D$1:$Q$178,14,0) -> 505001 | K77: 0878-2244773 | L77: - | M77: TRUE | N77: - | O77: mfskarimnagar@Kfintech.com | P77: Open
A78: Shri. T S Setty | B78: OPA | C78: KU03 | D78: Kurnool | E78: Shop No:47 | F78: 2nd Floor | G78: S komda Shoping mall | H78: Kurnool | I78: Andhra Pradesh | J78: =VLOOKUP(Table1[[#This Row],[Location]],'[1]MFS Add.List'!$D$1:$Q$178,14,0) -> 518001 | K78: 08518-228550 | L78: - | M78: TRUE | N78: - | O78: mfskurnool@Kfintech.com | P78: Open
A79: 112 | B79: UFC | C79: NL13 | D79: Nellore | E79: 16/1433 1St Floor | F79: Sunshine Plaza | G79: Ramalingapuram | H79: Nellore | I79: Andhra Pradesh | J79: 524002 | K79: 0861-2335818 | L79: - | M79: TRUE | N79: - | O79: utinelloreufc@Kfintech.com | P79: open
A80: - | B80: UFC | C80: RM79 | D80: Rajahmundry | E80: Jupudi Plaza D No:7-26-21 1St Floor | F80: Maturi Vari Street | G80: T Nagar0 | H80: Rajahmundry | I80: Andhra Pradesh | J80: 533101 | K80: 0883-2438188 | L80: - | M80: TRUE | N80: - | O80: utirajahmundryufc@Kfintech.com | P80: open
A81: 129 | B81: UFC | C81: SL04 | D81: Solapur | E81: 157/2C | F81: Rajabhau Patwardhan Chowk | G81: Railway Line | H81: Solapur | I81: Maharashthra | J81: 413001 | K81: 0217-2311787 | L81: 0217-2311768 | M81: TRUE | N81: - | O81: utisolapurufc@Kfintech.com | P81: open
A82: - | B82: UFC | C82: TP89 | D82: Tirupathi | E82: Uti Mutual Funds | F82: 20-1-201C Groundfloor | G82: Korlagunta Junction | H82: Tirupati | I82: Andhra Pradesh | J82: 517501 | K82: 0877-2970308 | L82: - | M82: TRUE | N82: - | O82: utitirupathiufc@Kfintech.com | P82: open
A83: - | B83: UFC | C83: VJ32 | D83: Vijayawada | E83: Door No.27-12-34 | F83: B S N Reddy Complex, Gudavallivari Street | G83: Governorpet | H83: Vijayawada | I83: Andhra Pradesh | J83: 520002 | K83: (0866) 2578819/2578129 | L83: 2444129 | M83: TRUE | N83: - | O83: utivijayawadaufc@Kfintech.com | P83: open
A84: - | B84: UFC | C84: VZ20 | D84: Visakhapatnam | E84: Uti Financial Centre# 47-1-99 | F84: 1st Floor Dwaraka Nagar | G84: 6th Lane Beside BVK College | H84: Visakhapatnam | I84: Andhra Pradesh | J84: 530016 | K84: 0891-2748121 | L84: - | M84: TRUE | N84: - | O84: utivisakhapatnamufc@Kfintech.com | P84: open
A85: - | B85: UFC | C85: WR89 | D85: Warangal | E85: Door No. 15-1-237 Shop Nos. 5 5A & 6 | F85: First Floor ‘Warangal City Centre’ | G85: Adjacent to Guardian Hospital Near Mulugu Cross Road | H85: Warangal | I85: Telangana | J85: 506007 | K85: 0870-2441099 | L85: - | M85: TRUE | N85: - | O85: utiwarangalufc@Kfintech.com | P85: open
A86: Shri. Gella Amarnath | B86: OPA | C86: KH03 | D86: Khammam | E86: KFin Technologies Pvt. Ltd, C/o UTI Mutual Fund | F86: H.No: 10-2-4 | G86: Srinivasa Plaza 1st floor Mamillagudem | H86: Beside Over Bridge | I86: Telangana | J86: 507001 | K86: 9014152929 | L86: - | M86: TRUE | N86: - | O86: mfskhammam@kfintech.com | P86: Open
A87: Shri. C Giridhar | B87: BDA | C87: NZ23 | D87: Nizamabad | E87: H.No:5-6-524 | F87: Opp: Bata Show Room Munnuru Kapu kalyana Mandapam Road Line. | G87: Pragathi Nagar Hyderabad Road | H87: Nizamabad | I87: Andhra Pradesh | J87: 503001 | K87: 08462-243266 | L87: - | M87: TRUE | N87: 2015-07-10 | O87: nizamabadcr@Kfintech.com | P87: open
A88: - | B88: UFC | C88: AM23 | D88: Amaravathi | E88: 1St Floor Vimaco Tower | F88: Bus Stand Road | G88: Opp Osmaniya Masjid | H88: Amravati | I88: Maharashthra | J88: 444601 | K88: 0721-2552905 | L88: - | M88: TRUE | N88: - | O88: utiamaravathiufc@Kfintech.com | P88: open
A89: 70 | B89: UFC | C89: AU65 | D89: Aurangabad | E89: Ground Floor Yashodhan Plot No-10 | F89: Bhagya Nagar Besides Baba Petrol Pump | G89: - | H89: Aurangabad | I89: Maharashthra | J89: 431001 | K89: 02402345219/2356212 | L89: 2402345229 | M89: TRUE | N89: - | O89: utiaurangabadufc@Kfintech.com | P89: open
A90: - | B90: UFC | C90: BH29 | D90: Bhopal | E90: Plot No 6 V V Plaza | F90: M P Nagar Zone-2 Bank Street | G90: Above Dhan Laxmi Bank | H90: Bhopal | I90: Madhya Pradesh | J90: 462011 | K90: (0731) 2534958/2533869/2535607 | L90: - | M90: TRUE | N90: - | O90: utibhopalufc@Kfintech.com | P90: open
A91: Shri. Akshay Chhajed | B91: OPA | C91: DH22 | D91: Dhule | E91: Ground Floor Ideal Laundry Lane No 4 | F91: Khol Galli Near Muthoot Finance | G91: Opp Bhavasar General Store | H91: Dhule | I91: Maharashthra | J91: =VLOOKUP(Table1[[#This Row],[Location]],'[1]MFS Add.List'!$D$1:$Q$178,14,0) -> 424001 | K91: 02562-282823 | L91: - | M91: TRUE | N91: - | O91: mfsdhule@Kfintech.com | P91: Open
A92: - | B92: UFC | C92: IN11 | D92: Indore | E92: UG 3 & 4 | F92: Starlit Tower | G92: Yashwant Niwas Road | H92: Indore | I92: Madhya Pradesh | J92: 452003 | K92: 0713-4077519 | L92: - | M92: TRUE | N92: - | O92: utiindoreufc@Kfintech.com | P92: open
A93: - | B93: UFC | C93: JB02 | D93: Jabalpur | E93: 74-75 1st Floor | F93: Gol Bazar Above HDFC Bank | G93: Jabalpur | H93: Jabalpur | I93: Madhya Pradesh | J93: 482002 | K93: 0761-4020904 | L93: - | M93: TRUE | N93: - | O93: utijabalpurufc@Kfintech.com | P93: open
A94: 138 | B94: UFC | C94: JG73 | D94: Jalgaon | E94: First Floor, Plot No-68 | F94: Zilha Peth, Behind Old Court | G94: Near Gujrat Sweet Mart | H94: Jalgaon | I94: Maharashthra | J94: 425001 | K94: (0257) 2240480/2240486 | L94: - | M94: TRUE | N94: - | O94: utijalgaonufc@Kfintech.com | P94: open
A95: - | B95: UFC | C95: NG26 | D95: Nagpur | E95: Shraddha House 1St Floor | F95: S V Patel Marg | G95: - | H95: Nagpur | I95: Maharashthra | J95: 440001 | K95: 0712-2529135 | L95: - | M95: TRUE | N95: - | O95: utinagpurufc@Kfintech.com | P95: open
A96: - | B96: UFC | C96: NA22 | D96: Nasik | E96: Ground Floor Apurva Avenue | F96: Nr. Kusumagraj Pratishthan | G96: Tilak Wadi | H96: Nasik | I96: Maharashthra | J96: 422002 | K96: 0253-2312537 | L96: 0253-2570250 | M96: TRUE | N96: - | O96: utinasikufc@Kfintech.com | P96: open
A97: 118 | B97: UFC | C97: RA23 | D97: Ratlam | E97: 101 R S PARADISE FIRST FLOOR ABOVE TRIMURTI SWEETS | F97: OPP. ANKLESARIA HONDA SHOWROOM | G97: 158 DO BATTI SQUARE | H97: Ratlam | I97: Madhya Pradesh | J97: 457001 | K97: 07412-243001 | L97: - | M97: TRUE | N97: - | O97: utiratlamufc@Kfintech.com | P97: open
A98: Shri. Santosh H Gandhi | B98: BDA | C98: AH02 | D98: Ahmednagar | E98: 3312 Khist Galli | F98: Opp Gurukrupa Sadi Centre | G98: - | H98: Ahmednagar | I98: Maharashtra | J98: 414001 | K98: 0241-2355657 | L98: - | M98: TRUE | N98: - | O98: mfsahmednagarcr@kfintech.com | P98: open
A99: Shri. Sumit Kataria | B99: BDA | C99: UJ23 | D99: Ujjain | E99: C/o Sumit Kartaria 68 Mussadipura | F99: Sati marg | G99: - | H99: Ujjain | I99: Madhya Pradesh | J99: 456006 | K99: 0734-2554795 | L99: - | M99: TRUE | N99: 2013-03-15 | O99: mfsujjaincr@kfintech.com | P99: open
A100: Shri. B S Wadhawan | B100: BDA | C100: CD23 | D100: Chandrapur | E100: C/O Mr B S Wadhawan | F100: 3rd Floor City Plaza | G100: Above New Purti Bazar Near Jatpura Gate | H100: Chandrapur | I100: Maharashtra | J100: 442402 | K100: 07172-255562 | L100: - | M100: TRUE | N100: 2015-06-30 | O100: chandrapurcr@Kfintech.com | P100: open
A101: Shri. Mahesh Kumar Raikwar | B101: BDA | C101: SG23 | D101: Sagar | E101: Shop No.9 | F101: 1st Floor Satyam Complex | G101: In front of Cant Mall 5 Civil Lines | H101: Sagar | I101: Madhya Pradesh | J101: 470002 | K101: 07582 221 871 | L101: - | M101: TRUE | N101: 2015-08-19 | O101: sagarcr@Kfintech.com | P101: Open
A102: - | B102: UFC | C102: AK23 | D102: Akola | E102: Lakhma Apartment Ground Floor | F102: Near Anand Bakery | G102: Ramdaspeth | H102: Akola | I102: Maharashthra | J102: 444001 | K102: 0724 – 2410711 | L102: - | M102: TRUE | N102: - | O102: Kfpl.Akolaufc@Kfintech.com | P102: open
A103: Shri. Pradeep Kumar Nayak | B103: BDA | C103: PU01 | D103: Puri | E103: Lavanyapuri Near U P School | F103: Sarvodaya Nagar | G103: Puri | H103: Orissa | I103: Orissa | J103: 752002 | K103: 9437286269 | L103: - | M103: TRUE | N103: - | O103: mfspuricr@kfintech.com | P103: open
A104: 71 | B104: UFC | C104: BL40 | D104: Balasore | E104: Plot No:- 570 1st Floor | F104: Station Bazar | G104: Near Durga Mandap | H104: Balasore | I104: Orissa | J104: 756001 | K104: 06782-241938 | L104: - | M104: TRUE | N104: - | O104: utibalasoreufc@Kfintech.com | P104: open
A105: - | B105: UFC | C105: BS01 | D105: Barasat | E105: 57 Jessore Road | F105: Sethpukur 1st Floor | G105: - | H105: Barasat | I105: West Bengal | J105: 700124 | K105: 033-25844645 | L105: - | M105: TRUE | N105: - | O105: utibarasatufc@Kfintech.com | P105: open
A106: - | B106: UFC | C106: BR01 | D106: Berhampore (WB) | E106: 1/5 K K Banerjee Road 1st Floor | F106: Gorabazar | G106: Po Berhampore | H106: Dist Murshidabad | I106: West Bengal | J106: 742101 | K106: 03482 - 274 251 | L106: - | M106: TRUE | N106: - | O106: utiberhamporeufc@Kfintech.com | P106: open
A107: - | B107: UFC | C107: BE40 | D107: Berhampur (OR) | E107: Near Mahamayee Womens College | F107: Dharma Nagar 4th East Side Lane | G107: Dist Ganjam | H107: Orissa | I107: Orissa | J107: 760001 | K107: 0680 - 2226295 | L107: - | M107: TRUE | N107: - | O107: utiberhampurufc@Kfintech.com | P107: open
A108: 75 | B108: UFC | C108: BI83 | D108: Bhilai | E108: Shop No 38 Commercial Complex | F108: Nehru Nagr East | G108: Near ICICI Bank | H108: Bhilai | I108: Chatisgarh | J108: 490020 | K108: 0788 2292777 | L108: - | M108: TRUE | N108: - | O108: utibhilaiufc@Kfintech.com | P108: open
A109: - | B109: UFC | C109: BH27 | D109: Bhubaneswar | E109: 24 Janpath | F109: 1ST FLOOR O C H C BUILDING | G109: Near Ram Mandir | H109: Bhubaneswar | I109: Orissa | J109: 751001 | K109: 0674-2390365 | L109: - | M109: TRUE | N109: - | O109: utibhubaneswarufc@Kfintech.com | P109: open
A110: 78 | B110: UFC | C110: BK72 | D110: Bokaro | E110: Plot No.C-1/20-C Ground Floor | F110: City Centre Sector-4 Bokaro Steel City | G110: Near Police Club | H110: Bokaro | I110: Jharkhand | J110: 827004 | K110: 06542-233350 | L110: - | M110: TRUE | N110: - | O110: utibokaroufc@Kfintech.com | P110: open
A111: 79 | B111: UFC | C111: BU01 | D111: Burdwan | E111: 37A G T Road | F111: Sree Gopal Bhavan | Parbirhata | G111: PO Sripally | H111: Burdwan | I111: West Bengal | J111: 713103 | K111: 0342-2647358 | L111: - | M111: TRUE | N111: - | O111: Utiburdwanufc@Kfintech.com | P111: open
A112: 82 | B112: UFC | C112: CK09 | D112: Cuttack | E112: GROUND FLOOR PLOT NO – 99 | F112: VIVEKANANDA LANE | G112: BADAMBADI KATHJODI MAIN ROAD | H112: Cuttack | I112: Orissa | J112: 753012 | K112: 0671-2315788 | L112: - | M112: TRUE | N112: - | O112: uticuttackufc@Kfintech.com | P112: open
A113: - | B113: UFC | C113: DA94 | D113: Dhanbad | E113: 111/112 Sriram Mall1st Floor | F113: Shastri Nagar | G113: - | H113: Dhanbad | I113: Jharkhand | J113: 826001 | K113: 9264445982 | L113: Changed From 17th Feb | M113: TRUE | N113: - | O113: utidhanbadufc@Kfintech.com | P113: open
A114: - | B114: UFC | C114: DU47 | D114: Durgapur | E114: 3rd Admn Bldg 2nd Floor | F114: City Centre | G114: - | H114: Durgapur | I114: West Bengal | J114: 713216 | K114: 0343-2543993 | L114: - | M114: TRUE | N114: - | O114: utidurgapurufc@Kfintech.com | P114: open
A115: - | B115: UFC | C115: GY81 | D115: Gaya | E115: Zion Complex 1st Floor | F115: Opp. Fire Brigade | G115: Swaraj Puri Road | H115: Gaya | I115: Bihar | J115: 823001 | K115: 0631-2221937 | L115: - | M115: TRUE | N115: - | O115: utigayaufc@Kfintech.com | P115: open
A116: Shri. Aparesh Choudhuri | B116: OPA | C116: JP79 | D116: Jalpaiguri | E116: D B C Road Opp Nirala Hotel | F116: Opp Nirala Hotel | G116: Opp Nirala Hotel | H116: Jalpaiguri | I116: West Bengal | J116: =VLOOKUP(Table1[[#This Row],[Location]],'[1]MFS Add.List'!$D$1:$Q$178,14,0) -> 735101 | K116: 03561-222136 | L116: - | M116: TRUE | N116: - | O116: mfsjalpaiguri@Kfintech.com | P116: Open
A117: - | B117: UFC | C117: JM28 | D117: Jamshedpur | E117: 1 / A Ram Mandir Area | F117: Main Road Bistupur | G117: Jamshedpur | H117: Jharkhand | I117: Jharkhand | J117: 831001 | K117: 0657 6506502 | L117: - | M117: TRUE | N117: - | O117: utijamshedpurufc@Kfintech.com | P117: open
A118: - | B118: UFC | C118: KY05 | D118: Kalyani | E118: B - 12/1 Kalyani | F118: Central park | G118: Dist Nadia | H118: Kalyani | I118: West Bengal | J118: 741235 | K118: 033 2502 5157 | L118: - | M118: TRUE | N118: - | O118: utikalyaniufc@Kfintech.com | P118: open
A119: - | B119: UFC | C119: KR96 | D119: Kharagpur | E119: Atwal Real Estate Building | F119: O T Road PO - Inda | G119: Dist Paschim Midnapore | H119: Kharagpur | I119: West Bengal | J119: 721305 | K119: 03222-227950 | L119: - | M119: TRUE | N119: - | O119: utikharagpurufc@Kfintech.com | P119: open
A120: - | B120: UFC | C120: CA05 | D120: Kolkata-NS Rd | E120: 29 N S Road | F120: 1st Floor | G120: - | H120: Kolkata | I120: West Bengal | J120: 700001 | K120: 033-40056645 | L120: - | M120: TRUE | N120: - | O120: utikolkataufc@Kfintech.com | P120: open
A121: - | B121: UFC | C121: RB07 | D121: Kolkata-Rashbehari | E121: 99 Rashbehari Avenue | F121: Ground Floor | G121: - | H121: Kolkata | I121: West Bengal | J121: 700029 | K121: 033-40031611 | L121: - | M121: TRUE | N121: - | O121: utirashbehariufc@Kfintech.com | P121: open
A122: - | B122: UFC | C122: SL08 | D122: Kolkata-Salt Lake | E122: AD 55 | F122: Salt Lake City | G122: Sector 1 | H122: Kolkata | I122: West Bengal | J122: 700064 | K122: 03340041421 | L122: - | M122: TRUE | N122: - | O122: utisaltlakeufc@Kfintech.com | P122: open
A123: 102 | B123: UFC | C123: ML97 | D123: Malda | E123: 10/26 K J Sanyal Road | F123: 1st Floor | G123: Opp Gazole Taxi Stand. | H123: Malda | I123: West Bengal | J123: 732101 | K123: 03512-223762 | L123: - | M123: TRUE | N123: - | O123: utimaldaufc@Kfintech.com | P123: open
A124: - | B124: UFC | C124: PA48 | D124: Patna | E124: Harswardhan Arcade 3rd floor | F124: Beside Hotel Samrat International | G124: Frazer Road | H124: Patna | I124: Bihar | J124: 800001 | K124: 0612- 2230886 | L124: - | M124: TRUE | N124: - | O124: utipatnaufc@Kfintech.com | P124: open
A125: - | B125: UFC | C125: RA40 | D125: Raipur | E125: Vanijya BhavanGround Floor | F125: Sai Nagar Jail Road | G125: - | H125: Raipur | I125: Chatisgarh | J125: 492009 | K125: 0771-4051862 | L125: - | M125: TRUE | N125: - | O125: utiraipurufc@Kfintech.com | P125: open
A126: - | B126: UFC | C126: RN80 | D126: Ranchi | E126: SPG Mart Commercial Complex | F126: Old H B Road Bahu Bazar | G126: - | H126: Ranchi | I126: Jharkhand | J126: 834001 | K126: 7542979555 | L126: - | M126: TRUE | N126: - | O126: utiranchiufc@Kfintech.com | P126: open
A127: - | B127: UFC | C127: RK70 | D127: Rourkela | E127: Shree Vyas Complex | F127: Near Shalimar Hotel | G127: Panposh Road | H127: Rourkela | I127: Orissa | J127: 769004 | K127: 0661-2401118 | L127: - | M127: TRUE | N127: - | O127: utirourkelaufc@Kfintech.com | P127: open
A128: - | B128: UFC | C128: SB80 | D128: Sambalpur | E128: 1st Floor, R N Complex | F128: Opp Budharaja High School | G128: Beside LIC Building, Budharaja | H128: Sambalpur | I128: Orissa | J128: 768004 | K128: (0663) 2541214/1213/1215 | L128: - | M128: TRUE | N128: - | O128: utisambalpurufc@Kfintech.com | P128: open
A129: - | B129: UFC | C129: SE01 | D129: Serampore | E129: 6/A/2 Roy Ghat Lane | F129: Hinterland Complex | G129: - | H129: Hooghly | I129: West Bengal | J129: 712201 | K129: 033-26529167 | L129: - | M129: TRUE | N129: - | O129: utiseramporeufc@Kfintech.com | P129: open
A130: - | B130: UFC | C130: SI49 | D130: Siliguri | E130: Jeevan Deep Building Ground Floor | F130: Sevoke Road Guru Nanak Sarani | G130: Opp Sony Tower | H130: Siliguri | I130: West Bengal | J130: 734001 | K130: 0353-2522043 | L130: - | M130: TRUE | N130: - | O130: utisiliguriufc@Kfintech.com | P130: open
A131: Shri. Asok Pramanik | B131: BDA | C131: HW01 | D131: Howrah | E131: Uluberia - R.S. | F131: Majherati | G131: Jaduberia | H131: Howrah | I131: West Bengal | J131: 711316 | K131: 9836792313 | L131: - | M131: TRUE | N131: - | O131: mfshowrahcr@kfintech.com | P131: open
A132: - | B132: BDA | C132: ND01 | D132: Nadia (Krishnagar) | E132: Udayan | F132: 20 M.M. Street PO Krishnagar | G132: Near Sadar Hospital Traffic More | H132: Nadia | I132: West Bengal | J132: 741101 | K132: 9732724157 | L132: - | M132: TRUE | N132: - | O132: mfsnadiacr@kfintech.com | P132: open
A133: - | B133: BDA | C133: NL01 | D133: Nalanda | E133: Hotel Anukul | F133: Post Office Road | G133: Bihar Sharif | H133: Nalanda | I133: Bihar | J133: 803101 | K133: 9204439963 | L133: - | M133: TRUE | N133: - | O133: mfsnalandacr@kfintech.com | P133: open
A134: - | B134: BDA | C134: UT01 | D134: Uttar Dinajpur(Raiganj) | E134: SUPERMARKET Block 3 1st Floor | F134: NEAR GITANJALI CINEMA HALL | G134: Po Raiganj | H134: Uttar Dinajpur | I134: West Bengal | J134: 733134 | K134: 9851586808 | L134: - | M134: TRUE | N134: - | O134: mfsdinajpurcr@kfintech.com | P134: open
A135: - | B135: BDA | C135: PB01 | D135: Port Blair | E135: Miduna Tower Ground Floor | F135: 5 Middle Point | G135: 122 M G Road | H135: Port Blair | I135: Andaman & Nicobar Islands | J135: 744101 | K135: 9531833687 | L135: - | M135: TRUE | N135: - | O135: mfsportblaircr@kfintech.com | P135: open
A136: Shri. Manoj Kumar Dolai | B136: BDA | C136: EM01 | D136: East Midnapore | E136: Town Padumbasan | F136: P O Tamluk | G136: East Midnapore | H136: West Bengal | I136: West Bengal | J136: 721636 | K136: 9609493032 | L136: - | M136: TRUE | N136: - | O136: mfsmidnaporecr@kfintech.com | P136: open
A137: Shri. Subhasis Das | B137: BDA | C137: BN85 | D137: Bankura | E137: Rampur Road | F137: Old Rathtola | G137: Near City Nursing Home | H137: Bankura | I137: West Bengal | J137: 722101 | K137: 8759578356 | L137: - | M137: TRUE | N137: 2014-08-13 | O137: mfsBankuracr@kfintech.com | P137: open
A138: 69 | B138: UFC | C138: AS01 | D138: Asansol | E138: UTI Financial Center | F138: 1st Floor | G138: 129 G.T. road Rambandhutala | H138: Asansol | I138: West Bengal | J138: 713303 | K138: 0341-2970089 | L138: - | M138: TRUE | N138: 2019-03-18 | O138: Kfpl.utiasansolufc@Kfintech.com | P138: open
A139: Shri. Ved Prakash Gupta | B139: BDA | C139: BP01 | D139: Bhojpur | E139: C/o Mr. V P Gupta | F139: Mahadeva RoadAra Bhojpur Bihar | G139: - | H139: Bhojpur | I139: Madhya Pradesh | J139: 802301 | K139: 9572052607 | L139: - | M139: TRUE | N139: 2016-03-01 | O139: mfsbhojpurcr@Kfintech.com | P139: open
A140: - | B140: BDA | C140: PR01 | D140: Paradip | E140: NEW TRADE CENTER 1 | F140: 2nd Floor | UNIT 5 | BANK STREET | G140: - | H140: Paradip | I140: Orissa | J140: 754 142 | K140: 9337060557 | L140: - | M140: TRUE | N140: 2016-03-29 | O140: mfsparadipcr@Kfintech.com | P140: Close
A141: Shri. Manoj Kumar Singhania | B141: BDA | C141: PA01 | D141: Purulia | E141: RANCHI ROAD BANSH BUNGLOW (HILL ROAD | F141: OPP. SWIMMING POOL | G141: Purulia | H141: West Bengal | I141: West Bengal | J141: 723101 | K141: 9434013330 | L141: - | M141: TRUE | N141: 2018-08-13 | O141: mfspuruliacr@Kfintech.com | P141: open
A142: - | B142: BDA | C142: AR01 | D142: Arambagh | E142: Arambagh Panchayet samity market complex | F142: Opp Rabindra Bhavan Room no 8 | G142: - | H142: Arambagh | I142: West Bengal | J142: 712601 | K142: 9332289812 | L142: - | M142: TRUE | N142: 2019-03-14 | O142: Kfpl.arambaghcr@Kfintech.com | P142: open
A143: - | B143: BDA | C143: DJ01 | D143: Daltonganj | E143: Mahendra Arcade 2nd Floor | F143: Near Zila School chowk | G143: - | H143: Daltonganj | I143: Orissa | J143: 822101 | K143: 9955365440 | L143: - | M143: TRUE | N143: 2019-04-06 | O143: kfpl.daltonganjcr@Kfintech.com | P143: open
A144: - | B144: UFC | C144: BS24 | D144: Bilaspur | E144: S-103 Anandam Plaza Ground Floor | F144: In front of Rama Port | G144: VyaparVihar | H144: Bilaspur | I144: Chatisgarh | J144: 495001 | K144: 07752 – 405538 | L144: - | M144: TRUE | N144: 2019-11-07 | O144: Kfpl.utibilaspurufc@Kfintech.com | P144: open
A145: - | B145: UFC | C145: AG54 | D145: Agra | E145: 60/4 FCI Building | F145: Sanjay Place | G145: - | H145: Agra | I145: Uttar Pradesh | J145: 282002 | K145: 0562-4309927 | L145: - | M145: TRUE | N145: - | O145: utiagraufc@Kfintech.com | P145: open
A146: - | B146: UFC | C146: AL17 | D146: Aligarh | E146: 3/339-A | F146: Opp Atrauli Bus Stand | G146: Ramghat Road | H146: Aligarh | I146: Uttar Pradesh | J146: 202001 | K146: 7518801902 | L146: - | M146: TRUE | N146: - | O146: utialigarhufc@Kfintech.com | P146: open
A147: - | B147: UFC | C147: AL33 | D147: Allahabad | E147: 4 S.P. Marg | F147: 1st Floor | G147: Civil Lines | H147: Allahabad | I147: Uttar Pradesh | J147: 211001 | K147: 7518801903 | L147: - | M147: TRUE | N147: - | O147: utiallahabadufc@Kfintech.com | P147: open
A148: - | B148: UFC | C148: AB40 | D148: Ambala | E148: 5686-87 | F148: Nicholson Road | G148: Opp. Ashoka Dairy | H148: Ambala Cantt. | I148: Haryana | J148: 133001 | K148: 7518801904 | L148: - | M148: TRUE | N148: - | O148: utiambalaufc@Kfintech.com | P148: open
A149: - | B149: UFC | C149: BA66 | D149: Bareilly | E149: 116/117 Deen Dayal Puram | F149: Opp Jeevan Rekha Hospital | G149: Izzatnagar | H149: Bareilly | I149: Uttar Pradesh | J149: 243122 | K149: 7518801905 | L149: - | M149: TRUE | N149: - | O149: utibareillyufc@Kfintech.com | P149: open
A150: - | B150: UFC | C150: BH40 | D150: Bhagalpur | E150: 1St Floor Kavita Apartment | F150: M G Road | G150: Near Head Post Office | H150: Bhagalpur | I150: Bihar | J150: 812001 | K150: 7518801906 | L150: - | M150: TRUE | N150: - | O150: utibhagalpurufc@Kfintech.com | P150: open
A151: - | B151: UFC | C151: DB42 | D151: Darbhanga | E151: 1st Floor, JR Plaza | F151: Raj Kumar Ganj Main Road | G151: - | H151: Darbhanga | I151: Bihar | J151: 846004 | K151: 7518801907 | L151: - | M151: TRUE | N151: - | O151: utidarbhangaufc@Kfintech.com | P151: open
A152: - | B152: UFC | C152: DH34 | D152: Dehradun | E152: 56 Rajpur Road | F152: Opp.Hotel Madhuban Palace | G152: - | H152: Dehradun | I152: Uttaranchal | J152: 248001 | K152: 7518801908 | L152: - | M152: TRUE | N152: - | O152: utidehradunufc@Kfintech.com | P152: open
A153: - | B153: UFC | C153: FA56 | D153: Faridabad | E153: SCO-3 1st Floor | F153: Above Bank of Baroda | G153: Sector -16 | H153: Faridabad | I153: Haryana | J153: 121002 | K153: 7518801909 | L153: - | M153: TRUE | N153: - | O153: utifaridabadufc@Kfintech.com | P153: open
A154: - | B154: UFC | C154: GZ57 | D154: Ghaziabad | E154: C-53C | F154: RDC Raj Nagar | G154: Opp Petrol Pump | H154: Ghaziabad | I154: Uttar Pradesh | J154: 201002 | K154: 0120-4258381 | L154: - | M154: TRUE | N154: - | O154: utighaziabadufc@Kfintech.com | P154: open
A155: 88 | B155: UFC | C155: GR74 | D155: Gorakhpur | E155: Shop No.16-20 | F155: Cross Road The Mall | G155: Bank Road | H155: Gorakhpur | I155: Uttar Pradesh | J155: 273001 | K155: 7518801911 | L155: - | M155: TRUE | N155: - | O155: utigorakhpurufc@Kfintech.com | P155: open
A156: - | B156: UFC | C156: GA92 | D156: Gurgaon | E156: SCO-28 | F156: 1st Floor | G156: Sector-14 | H156: Gurgaon | I156: Haryana | J156: 122001 | K156: (0124) 4245200 /4362538/7518801912 | L156: - | M156: TRUE | N156: - | O156: utigurgaonufc@Kfintech.com | P156: open
A157: - | B157: UFC | C157: GW35 | D157: Gwalior | E157: 45-A | F157: Alaknanda Tower | G157: City Centre | H157: Gwalior | I157: Madhya Pradesh | J157: 474011 | K157: 7518801913 | L157: - | M157: TRUE | N157: - | O157: utigwaliorufc@Kfintech.com | P157: open
A158: Shri. Sanjeev Kumra | B158: OPA | C158: HI40 | D158: Hissar | E158: KFin Technologies Pvt. Ltd, C/O Uti Mutual Fund | F158: C/o Shri Sanjeev Kumra | G158: 79-SModel Town | H158: Hissar | I158: Haryana | J158: 125005 | K158: 7518801821 | L158: - | M158: TRUE | N158: - | O158: hissarcr@Kfintech.com | P158: Open
A159: 90 | B159: UFC | C159: JH73 | D159: Jhansi | E159: UTI Financial Center | F159: 1st Floor Basera Arcade (Plot No. 551/1 & 556/2) BKD-Chitra Road | G159: In front of Dhyanchand StadiumCivil Lines | H159: Jhansi | I159: Uttar Pradesh | J159: 284002 | K159: 0510 - 2441877 | L159: - | M159: TRUE | N159: - | O159: kfpl.utijhansiufc@Kfintech.com | P159: open
A160: - | B160: UFC | C160: KN15 | D160: Kanpur | E160: 16/77 | F160: Civil Lines | G160: - | H160: Kanpur | I160: Uttar Pradesh | J160: 208001 | K160: 7518801914 | L160: - | M160: TRUE | N160: - | O160: utikanpurufc@Kfintech.com | P160: open
A161: - | B161: UFC | C161: LK16 | D161: Lucknow | E161: 19/32 Aryan Business Park | F161: IInd Floor M G Road | G161: Old Park Road Hazratganj | H161: Lucknow | I161: Uttar Pradesh | J161: 226001 | K161: 0522-4010533 /7518801915 | L161: - | M161: TRUE | N161: - | O161: utilucknowufc@Kfintech.com | P161: open
A162: 105 | B162: UFC | C162: MT01 | D162: Mathura | E162: 1st Floor, SFD Tower | F162: Goverdhan Road | G162: Opp Jal Nigam Office, krishna Nagar | H162: Mathura | I162: Uttar Pradesh | J162: 281004 | K162: 0565-2972109 | L162: - | M162: TRUE | N162: - | O162: utimathuraufc@kfintech.com | P162: Open
A163: 106 | B163: UFC | C163: ME76 | D163: Meerut | E163: 10/8 Niranjan Vatika | F163: Begum Bridge Road | G163: Near Baccha Park | H163: Meerut | I163: Uttar Pradesh | J163: 250001 | K163: 7518801916 | L163: - | M163: TRUE | N163: - | O163: utimeerutufc@Kfintech.com | P163: open
A164: 108 | B164: UFC | C164: MO84 | D164: Moradabad | E164: Sri Ballabh Complex | F164: Near Bank Of Baroda | G164: Civil Lines | H164: Moradabad | I164: Uttar Pradesh | J164: 244001 | K164: 7518801917 | L164: - | M164: TRUE | N164: - | O164: utimoradabadufc@Kfintech.com | P164: open
A165: 109 | B165: UFC | C165: MZ84 | D165: Muzaffarpur | E165: Lic Zonal Office Campus Ground Floor | F165: Infront Of Devi Mandir | G165: Ramna | H165: Muzaffarpur | I165: Bihar | J165: 842002 | K165: 7518801918 | L165: - | M165: TRUE | N165: - | O165: utimuzaffarpurufc@Kfintech.com | P165: open
A166: - | B166: UFC | C166: NO16 | D166: Noida | E166: N-10 & N-11 First Floor | F166: Above indusind Bank | G166: Sector- 18 | H166: Noida | I166: Uttar Pradesh | J166: 201301 | K166: 7518801919 | L166: - | M166: TRUE | N166: - | O166: utinoidaufc@Kfintech.com | P166: Open
A167: - | B167: UFC | C167: PP93 | D167: Panipat | E167: Office No. 9 2nd Floor | F167: N K Tower Near Hdfc Bank | G167: G T Road | H167: Panipat | I167: Haryana | J167: 132103 | K167: 7518801920 | L167: - | M167: TRUE | N167: - | O167: utipanipatufc@Kfintech.com | P167: open
A168: 120 | B168: UFC | C168: RO40 | D168: Rohtak | E168: UTI Financial Center | F168: 2Nd Floor Bank Square buildingPlot No 120-121 | G168: opp myna tourist complexDelhi road | H168: Rohtak | I168: Haryana | J168: 124001 | K168: 01262-254021/22 | L168: - | M168: TRUE | N168: 2019-05-09 | O168: Kfpl.utirohtakufc@Kfintech.com | P168: open
A169: - | B169: OPA | C169: RO16 | D169: Roorkee | E169: Shree Ashadeep Complex 16 | F169: Civil Lines | G169: Near Income Tax Office | H169: Roorkee | I169: Uttaranchal | J169: =VLOOKUP(Table1[[#This Row],[Location]],'[1]MFS Add.List'!$D$1:$Q$178,14,0) -> 247667 | K169: 7518801845 | L169: - | M169: TRUE | N169: - | O169: mfsroorkee@Kfintech.com | P169: Open
A170: - | B170: UFC | C170: SM59 | D170: Shimla | E170: Bell Villa | F170: 5th Floor, Below Scandal Point | G170: The Mall | H170: Shimla | I170: Himachal Pradesh | J170: 171001 | K170: (0177) 2657803/ 7518801921 | L170: - | M170: TRUE | N170: - | O170: utishimlaufc@Kfintech.com | P170: open
A171: Shri. Pradeep Parolia | B171: OPA | C171: SU29 | D171: Sultanpur | E171: 1st Floor, Ramashanker Market | F171: Civil Line | G171: - | H171: Sultanpur | I171: Uttar Pradesh | J171: =VLOOKUP(Table1[[#This Row],[Location]],'[1]MFS Add.List'!$D$1:$Q$178,14,0) -> 228001 | K171: 7518801854 | L171: - | M171: TRUE | N171: - | O171: mfssultanpur@Kfintech.com | P171: Open
A172: - | B172: UFC | C172: VR36 | D172: Varanasi | E172: D58/2A/11st Floor | F172: Bhawani Market | G172: Near Kuber ComplexRathyatra | H172: Varanasi | I172: Uttar Pradesh | J172: 221001 | K172: 7518801922 | L172: - | M172: TRUE | N172: - | O172: utivaranasiufc@Kfintech.com | P172: open
A173: Shri. Om Prakash Thakur | B173: BDA | C173: RE13 | D173: Rewari | E173: SCO-71st Floor | F173: Above Bank of Baroda | G173: Brass Market | H173: Rewari | I173: Haryana | J173: 123401 | K173: 9896267637 | L173: - | M173: TRUE | N173: - | O173: mfsrewaricr@kfintech.com | P173: open
A174: Shri. Vijay Kumar Rajak | B174: BDA | C174: KB23 | D174: Korba | E174: Shop No- 31 | F174: Shubdha Complex | G174: T P Nagar Korba (CG) | H174: Korba | I174: Chatisgarh | J174: 495677 | K174: 7518801826 | L174: - | M174: TRUE | N174: 2019-07-08 | O174: korbacr@Kfintech.com@Kfintech.com | P174: open
A175: Shri. Ajay Dinkar Modak | B175: BDA | C175: ST23 | D175: Satna | E175: Prem Nagar | F175: Near MPEB Office | G175: - | H175: Satna | I175: Madhya Pradesh | J175: 485001 | K175: 7518801847 | L175: - | M175: TRUE | N175: 2015-08-04 | O175: satnacr@Kfintech.com | P175: open
A176: Shri. Rabindra Kumar Sah | B176: BDA | C176: KH23 | D176: Katihar | E176: C/o Mr Rabindra Kumar Sah Keshri Market | F176: Barbanna Gali Baniatola Chowk M G Road | G176: - | H176: Katihar | I176: Bihar | J176: 854105 | K176: 6452244155 | L176: - | M176: TRUE | N176: 2016-03-11 | O176: kaitharcr@Kfintech.com | P176: open
A177: Shri. Ashok Gaur | B177: OPA | C177: AZ19 | D177: Azamgarh | E177: KFin Technologies Pvt. Ltd, C/O Uti Mutual Fund | F177: 1St Floor | G177: Alkal Building | H177: Opp. Nagaripalika Civil Line | I177: Uttar Pradesh | J177: 276001 | K177: 7518801805 | L177: - | M177: TRUE | N177: 2017-09-05 | O177: mfsazamgarh@Kfintech.com | P177: Open
A178: Shri. Puneet Seth | B178: OPA | C178: MI34 | D178: Mirzapur | E178: KFin Technologies Pvt. Ltd, C/O Uti Mutual Fund | F178: Abhay MandirAbhay Yatri Niwas 1st Floor | G178: Above HDFC Bank | H178: Dankin Gunj | I178: Uttar Pradesh | J178: 231001 | K178: 7518801836 | L178: - | M178: TRUE | N178: 2017-09-01 | O178: mfsmirzapur@Kfintech.com | P178: Open
A179: - | B179: OPA | C179: YA21 | D179: Yamuna Nagar | E179: KFin Technologies Pvt. Ltd, C/O Uti Mutual Fund | F179: Jagdhari Road | G179: Above Uco Bank | H179: Near D.A.V. Girls College | I179: Haryana | J179: 135001 | K179: 7518801857 | L179: - | M179: TRUE | N179: 2017-09-01 | O179: mfsyamunanagar@Kfintech.com | P179: Open
A180: Shri. Ajay Dudeja | B180: OPA | C180: SN09 | D180: Sonepat | E180: 2nd floor | F180: DP Tower, Model Town | G180: Near Subhash Chowk | H180: Sonepat | I180: Haryana | J180: =VLOOKUP(Table1[[#This Row],[Location]],'[1]MFS Add.List'!$D$1:$Q$178,14,0) -> 131001 | K180: 7518801853 | L180: - | M180: TRUE | N180: 2018-02-18 | O180: mfssonepat@Kfintech.com | P180: Open
A181: - | B181: BDA | C181: SY01 | D181: Shyamnagar | E181: 144 Dr B C Roy Road | F181: Shyamnagar | G181: PO: Noapara Dist: North 24 Parganas | H181: West Bengal | I181: West Bengal | J181: 743127 | K181: 033-25867770 | L181: - | M181: TRUE | N181: 2018-08-13 | O181: mfsshyamnagarcr@Kfintech.com | P181: open
A182: Shri. Nand Kumar Verma | B182: BDA | C182: FZ01 | D182: Firozabad | E182: 42/1 Shivaji Marg | F182: Firozabad | G182: - | H182: Uttar Pradesh | I182: Uttar pradesh | J182: 283 203 | K182: 05612 248290 | L182: - | M182: TRUE | N182: 2018-09-21 | O182: ferozabadcr@Kfintech.com | P182: open
A183: - | B183: UFC | C183: HD01 | D183: Haldwani | E183: UTI Financial Center | F183: 1st FloorA K TowerPlot No 4 | G183: Durga City CenterKhasra No.260Bhotia ParoHaldwani | H183: Nainital | I183: Uttaranchal | J183: 263139 | K183: 0594-6222433 | L183: - | M183: TRUE | N183: 2019-03-25 | O183: Kfpl.haldwaniufc@Kfintech.com | P183: open
A184: Shri. Sadan Kumar Hisariya | B184: OPA | C184: BE41 | D184: Begusarai | E184: C/o Dr Hazari Prasad Sahu | F184: Ward No 13, Behind Alka Cinema | G184: Begusarai (Bihar) | H184: Begusarai | I184: Bihar | J184: =VLOOKUP(Table1[[#This Row],[Location]],'[1]MFS Add.List'!$D$1:$Q$178,14,0) -> 851117 | K184: 7518801807 | L184: - | M184: TRUE | N184: 2019-06-05 | O184: mfsbegusarai@Kfintech.com | P184: Open
A185: - | B185: UFC | C185: KH40 | D185: Kolhapur | E185: 11 & 12 , Ground Floor, Ayodhya Towers | F185: CS No 511,KH-1/2, 'E' Ward | G185: Dabholkar Corner, Station Road | H185: Kolhapur | I185: Maharashthra | J185: 416001 | K185: (0231) 2657315/25, 2666603 | L185: - | M185: TRUE | N185: - | O185: utikolhapurufc@Kfintech.com | P185: open
A186: - | B186: OPA | C186: KC14 | D186: Mumbai | E186: 24/B Raja Bahadur Compound | F186: Ambalal Doshi Marg | G186: Behind Bse Bldg | H186: Fort | I186: Maharashthra | J186: =VLOOKUP(Table1[[#This Row],[Location]],'[1]MFS Add.List'!$D$1:$Q$178,14,0) -> 400001 | K186: 022-66235353 | L186: 022-66335192 | M186: TRUE | N186: - | O186: mumbaimfd@Kfintech.com | P186: Open
A187: - | B187: UFC | C187: BK21 | D187: Mumbai-Bandra Kurla | E187: Ground Floor Uti Tower Gn Block | F187: Bandra Kurla Complex | G187: Bandra East | H187: Mumbai | I187: Maharashtra | J187: 400051 | K187: 022-26528110 | L187: - | M187: TRUE | N187: - | O187: utibandrakurlaufcufc@Kfintech.com | P187: open
A188: - | B188: UFC | C188: BO41 | D188: Mumbai-Borivali | E188: Purva Plaza Next To Centurion Bank | F188: Opp. Reliance Energy Shimpoli | G188: Borivali (West) | H188: Mumbai | I188: Maharashtra | J188: 400092 | K188: 022-28994770 | L188: - | M188: TRUE | N188: - | O188: utiborivaliufc@Kfintech.com | P188: open
A189: - | B189: UFC | C189: GH42 | D189: Mumbai-Ghatkopar | E189: 102, 1st Floor | F189: Sai Plaza, Jawahar Road | G189: Opp. Ghatkopar Rly Station | H189: Mumbai | I189: Maharashtra | J189: 400077 | K189: (022) 25010833/0715 | L189: - | M189: TRUE | N189: - | O189: utighatkoparufc@Kfintech.com | P189: open
A190: - | B190: UFC | C190: GR14 | D190: Mumbai-Goregaon | E190: 101Accord Commercial Complex | F190: First Floor Station Road | G190: Opp. BEST Bus DepotGoregaon East | H190: Mumbai | I190: Maharashtra | J190: 400063 | K190: 022-29270103 | L190: - | M190: TRUE | N190: - | O190: utigoregaonufc@Kfintech.com | P190: open
A191: - | B191: UFC | C191: AN43 | D191: Mumbai-Jvpd | E191: Unit No. 2 Block ‘B’ | F191: Gulmohar Cross Road No.9 Jvpd Scheme | G191: Jvpd Andheri West | H191: Mumbai | I191: Maharashtra | J191: 400049 | K191: 022-26706286 | L191: - | M191: TRUE | N191: - | O191: utijvpdufc@Kfintech.com | P191: open
A192: - | B192: UFC | C192: KL23 | D192: Mumbai-Kalyan | E192: Ground Floor Jasraj Commercial Complex | F192: Valli Peer Chitroda Nagar | G192: Station Road Kalyan(West) | H192: Kalyan | I192: Maharashtra | J192: 421301 | K192: 0251-6458242 | L192: - | M192: TRUE | N192: - | O192: utikalyanufc@Kfintech.com | P192: open
A193: - | B193: UFC | C193: BB02 | D193: Mumbai-Lotuscourt | E193: Lotus Court Building | F193: 196 Jamshedji Tata Road | G193: Backbay Reclamation | H193: Mumbai | I193: Maharashtra | J193: 400020 | K193: 022-66235319 | L193: 022-22876024 | M193: TRUE | N193: - | O193: utilotuscourtufc@Kfintech.com | P193: open
A194: - | B194: UFC | C194: ML02 | D194: Mumbai-Marol | E194: Plot No.12 Road No.9 | F194: Behind Tunga Paradise Hotel Midc | G194: Marol Andheri (E) | H194: Mumbai | I194: Maharashtra | J194: 400093 | K194: 022-28303920 | L194: - | M194: TRUE | N194: - | O194: utimarolufc@Kfintech.com | P194: open
A195: - | B195: UFC | C195: PW22 | D195: Mumbai-Powai | E195: G-5 Ground Floor | F195: CETTM (Centre for Excellence in Telecom Technology & Management) | G195: MTNL Main Building Technology Street Hiranandani Gardens Powai | H195: Mumbai | I195: Maharashtra | J195: 400076 | K195: 022-25700810 | L195: - | M195: TRUE | N195: - | O195: utipowaiufc@Kfintech.com | P195: open
A196: - | B196: UFC | C196: TH44 | D196: Mumbai-Thane | E196: 101/102, Ishkrupa | F196: Ram Maruti Road, Opp. New English School | G196: Naupada | H196: Thane | I196: Maharashtra | J196: 400602 | K196: (022) 25332409/15 | L196: - | M196: TRUE | N196: - | O196: utithaneufc@Kfintech.com | P196: open
A197: - | B197: UFC | C197: VA45 | D197: Mumbai-Vashi | E197: Shop No 8 & 8A Ground Floor Vardhman Chambers | F197: Plot No 84 Sector 17 | G197: Behind AXIS Bank Ltd Vashi | H197: Navi Mumbai | I197: Maharashtra | J197: 400705 | K197: 022-27827217 | L197: - | M197: TRUE | N197: - | O197: utivashiufc@Kfintech.com | P197: open
A198: - | B198: UFC | C198: PU18 | D198: Pune | E198: Ground Floor, 'Shubhadra Bhavan | F198: Apte Road | G198: Opposite Ramee Grand Hotel | H198: Pune | I198: Maharashthra | J198: 411004 | K198: (020) 25521052/53/54/55/63,25521060 | L198: 020-25665068 | M198: TRUE | N198: - | O198: utipuneufc@Kfintech.com | P198: open
A199: - | B199: UFC | C199: CN24 | D199: Pune-Chinchwad | E199: City Pride 1St Floor Plot No92/C | F199: D-Iii Block Mumbai-Pune Highway | G199: Kalbhornagar Chinchwad | H199: Pune | I199: Maharashtra | J199: 411019 | K199: 020-46700129 | L199: 020-27455387 | M199: TRUE | N199: - | O199: utichinchwadufc@Kfintech.com | P199: open
A200: - | B200: BDA | C200: SA84 | D200: Sangali | E200: Indira Residency | F200: C S No. 305 Kotnis Path | G200: Near S T Stand | H200: Sangli | I200: Maharashtra | J200: 416416 | K200: 0233 2339432 | L200: - | M200: TRUE | N200: - | O200: mfssangalicr@kfintech.com | P200: open
... 39 more rows

Sheet KFintech ISC (hidden)
A1: S.No | B1: Branch Type | C1: Region | D1: Branch Name | E1: State | F1: Zone Status | G1: Consolidated Current Addrees | H1: Landline# | I1: Branch Email | J1: Open Status as of 28 Aug'20
A2: 1 | B2: MFS | C2: Bangalore | D2: Bangalore | E2: Karnataka | F2: Red Zone | G2: KFin Technologies Pvt. Ltd,No 35,Puttanna Road,Basavanagudi,Bangalore 560004 | H2: 080-26602852 | I2: bangaloremfd@Kfintech.com | J2: Open
A3: 2 | B3: MFS | C3: Bangalore | D3: Belgaum | E3: Karnataka | F3: Red Zone | G3: KFin Technologies Pvt. Ltd,Premises No.101, CTS NO.1893,Shree Guru Darshani Tower,Anandwadi, Hindwadi,Belgaum 590011 | H3: 0831 2402544 | I3: mfsbelgaum@Kfintech.com | J3: Open
A4: 3 | B4: MFS | C4: Bangalore | D4: Bellary | E4: Telangana | F4: Orange Zone | G4: KFin Technologies Pvt. Ltd,Shree Gayathri Towers #4,1st Floor K.H.B.Colony,Gopalaswamy Mudaliar Road,Gandhi Nagar-Bellary 583103 | H4: 08392 – 254750 | I4: mfsbellary@Kfintech.com | J4: Open
A5: 4 | B5: MFS | C5: Bangalore | D5: Davangere | E5: Karnataka | F5: Red Zone | G5: KFin Technologies Pvt. Ltd,D.No 162/6 , 1st Floor, 3rd Main,P J Extension,Davangere taluk, Davangere Manda,Davangere 577002 | H5: 0819-2258714 | I5: mfsdavangere@Kfintech.com | J5: Open
A6: 5 | B6: MFS | C6: Bangalore | D6: Dharwad | E6: Karnataka | F6: Red Zone | G6: KFin Technologies Pvt. Ltd,ADINATH COMPLEX,BESIDE KAMAL AUTOMOBILES, BHOOVI GALLI,OPP OLD LAXMI TALKIES, P B ROAD,Dharwad 580001 | H6: 0836- 2744207 | I6: mfsdharwad@Kfintech.com | J6: Open
A7: 6 | B7: MFS | C7: Bangalore | D7: Gulbarga | E7: Karnataka | F7: Red Zone | G7: KFin Technologies Pvt. Ltd,H NO 2-231,KRISHNA COMPLEX, 2ND FLOOR Opp.,Opp. Municipal corporation Office,Jagat, Station Main Road, KALABURAGI,Gulbarga 585105 | H7: 08472 252503 | I7: mfsgulbarga@Kfintech.com | J7: Open
A8: 7 | B8: MFS | C8: Bangalore | D8: Hassan | E8: Karnataka | F8: Red Zone | G8: KFin Technologies Pvt. Ltd,SAS NO: 490, HEMADRI ARCADE,2ND MAIN ROAD,SALGAME ROAD NEAR BRAHMINS BOYS HOSTEL,Hassan 573201 | H8: 08172 262065 | I8: mfshassan@Kfintech.com | J8: Open
A9: 8 | B9: MFS | C9: Bangalore | D9: Hubli | E9: Karnataka | F9: Orange Zone | G9: KFin Technologies Pvt. Ltd,R R MAHALAXMI MANSION,ABOVE INDUSIND BANK, 2ND FLOOR,DESAI CROSS, PINTO ROAD,Hubballi 580029 | H9: 0836-2252444 | I9: mfshubli@Kfintech.com | J9: Open
A10: 9 | B10: MFS | C10: Bangalore | D10: Mangalore | E10: Karnataka | F10: Orange Zone | G10: KFin Technologies Pvt. Ltd,Mahendra Arcade Opp Court Road,Karangal Padi,-,Mangalore 575003 | H10: 0824-2496289 | I10: mangaloremfd@Kfintech.com | J10: Open
A11: 10 | B11: MFS | C11: Bangalore | D11: Margao | E11: Goa | F11: Green Zone | G11: KFin Technologies Pvt. Ltd,2Nd Floor ,Dalal Commercial Complex,Pajifond,Margao 403601 | H11: 0832-2731823 | I11: mfsmargoa@Kfintech.com | J11: Open
A12: 11 | B12: MFS | C12: Bangalore | D12: Mysore | E12: Karnataka | F12: Green Zone | G12: KFin Technologies Pvt. Ltd,L-350Silver Tower,Ashoka Road,Opp.Clock Tower ,Mysore 570001 | H12: 0821-2438006 | I12: mfsmysore@Kfintech.com | J12: Open
A13: 12 | B13: MFS | C13: Bangalore | D13: Panjim | E13: Goa | F13: Green Zone | G13: KFin Technologies Pvt. Ltd,H. No: T-9, T-10, Affran plaza,3rd Floor,Near Don Bosco High School,Panjim 403001 | H13: 0832-2426874 | I13: panjimmfd@Kfintech.com | J13: Open
A14: 13 | B14: MFS | C14: Bangalore | D14: Shimoga | E14: Karnataka | F14: Red Zone | G14: KFin Technologies Pvt. Ltd,JAYARAMA NILAYA,2ND CORSS,MISSION COMPOUND,Shimoga 577201 | H14: 08182-228799 | I14: mfsshimoga@Kfintech.com | J14: Open
A15: 14 | B15: MFS | C15: Baroda | D15: Ahmedabad | E15: Gujarat | F15: Red Zone | G15: KFin Technologies Pvt. Ltd,Office No. 401, on 4th Floor,ABC-I, Off. C.G. Road,-,Ahmedabad 380009 | H15: 9081903021 | I15: ahmedabadmfd@Kfintech.com | J15: Open
A16: 15 | B16: MFS | C16: Baroda | D16: Anand | E16: Gujarat | F16: Red Zone | G16: KFin Technologies Pvt. Ltd,B-42 Vaibhav Commercial Center,Nr Tvs Down Town Shrow Room ,Grid Char Rasta ,Anand 380001 | H16: 9081903038 | I16: mfsanand@Kfintech.com | J16: Open
A17: 16 | B17: MFS | C17: Baroda | D17: Baroda | E17: Gujarat | F17: Red Zone | G17: KFin Technologies Pvt. Ltd,203 Corner point,Jetalpur Road,Baroda Gujarat,Baroda 390007 | H17: 0265-2353506 | I17: barodamfd@Kfintech.com | J17: Open
A18: 17 | B18: MFS | C18: Baroda | D18: Bharuch | E18: Gujarat | F18: Orange Zone | G18: KFin Technologies Pvt. Ltd,123 Nexus business Hub,Near Gangotri Hotel,B/s Rajeshwari Petroleum,Makampur Road,Bharuch 392001 | H18: 9081903042 | I18: mfsbharuch@Kfintech.com | J18: Open
A19: 18 | B19: MFS | C19: Baroda | D19: Bhavnagar | E19: Gujarat | F19: Red Zone | G19: KFin Technologies Pvt. Ltd,303 STERLING POINT ,WAGHAWADI ROAD ,-,Bhavnagar 364001 | H19: 278-3003149 | I19: mfsbhavnagar@Kfintech.com | J19: Open
A20: 19 | B20: MFS | C20: Baroda | D20: Gandhidham | E20: Gujarat | F20: Red Zone | G20: KFin Technologies Pvt. Ltd,Shop # 12 Shree Ambica Arcade Plot # 300,Ward 12. Opp. CG High School ,Near HDFC Bank,Gandhidham 370201 | H20: 9081903027 | I20: mfsgandhidham@Kfintech.com | J20: Open
A21: 20 | B21: MFS | C21: Baroda | D21: Gandhinagar | E21: Gujarat | F21: Red Zone | G21: KFin Technologies Pvt. Ltd,123 First Floor,Megh Malhar Complex,Opp. Vijay Petrol Pump Sector - 11,Gandhinagar 382011 | H21: 079 23244955 | I21: mfsgandhinagar@Kfintech.com | J21: Open
A22: 21 | B22: MFS | C22: Baroda | D22: Jamnagar | E22: Gujarat | F22: Orange Zone | G22: KFin Technologies Pvt. Ltd,131 Madhav Plazza, ,Opp Sbi Bank,Nr Lal Bunglow,Jamnagar 361008 | H22: 0288 3065810 | I22: mfsjamnagar@Kfintech.com | J22: Open
A23: 22 | B23: MFS | C23: Baroda | D23: Junagadh | E23: Gujarat | F23: Green Zone | G23: KFin Technologies Pvt. Ltd,124-125 Punit Shopping Center,M.G Road,Ranavav Chowk,Junagadh 362001 | H23: 0285-2652220 | I23: mfsjunagadh@Kfintech.com | J23: Open
A24: 23 | B24: MFS | C24: Baroda | D24: Mehsana | E24: Gujarat | F24: Orange Zone | G24: KFin Technologies Pvt. Ltd,FF-21 Someshwar Shopping Mall ,Modhera Char Rasta,-,Mehsana 384002 | H24: 02762-242950 | I24: mfsmehsana@Kfintech.com | J24: Open
A25: 24 | B25: MFS | C25: Baroda | D25: Nadiad | E25: Gujarat | F25: Red Zone | G25: KFin Technologies Pvt. Ltd,311-3rd Floor City Center ,Near Paras Circle,-,Nadiad 387001 | H25: 0268-2563245 | I25: mfsnadiad@Kfintech.com | J25: Open
A26: 25 | B26: MFS | C26: Baroda | D26: Navsari | E26: Gujarat | F26: Orange Zone | G26: KFin Technologies Pvt. Ltd,103 1ST FLOORE LANDMARK MALL,NEAR SAYAJI LIBRARY ,Navsari Gujarat,Navsari 396445 | H26: 9081903040 | I26: mfsnavsari@Kfintech.com | J26: Open
A27: 26 | B27: MFS | C27: Baroda | D27: Rajkot | E27: Gujarat | F27: Orange Zone | G27: KFin Technologies Pvt. Ltd,302 Metro Plaza ,Near Moti Tanki Chowk,Rajkot,Rajkot Gujarat 360001 | H27: 9081903025 | I27: rajkotmfd@Kfintech.com | J27: Open
A28: 27 | B28: MFS | C28: Baroda | D28: Surat | E28: Gujarat | F28: Red Zone | G28: KFin Technologies Pvt. Ltd,Office no: -516 5th Floor Empire State building ,Near Udhna Darwaja,Ring Road,Surat 395002 | H28: 9081903041 | I28: suratmf@Kfintech.com | J28: Open
A29: 28 | B29: MFS | C29: Baroda | D29: Valsad | E29: Gujarat | F29: Orange Zone | G29: KFin Technologies Pvt. Ltd,406 Dreamland Arcade,Opp Jade Blue,Tithal Road,Valsad 396001 | H29: 02632-258481 | I29: mfsvalsad@Kfintech.com | J29: Open
A30: 29 | B30: MFS | C30: Baroda | D30: Vapi | E30: Gujarat | F30: Orange Zone | G30: KFin Technologies Pvt. Ltd,A-8 FIRST FLOOR SOLITAIRE BUSINESS CENTRE,OPP DCB BANK GIDC CHAR RASTA,SILVASSA ROAD,Vapi 396191 | H30: 9081903028 | I30: mfsvapi@Kfintech.com | J30: Open
A31: 30 | B31: MFS | C31: Chennai | D31: Chennai | E31: Tamil Nadu | F31: Red Zone | G31: KFin Technologies Pvt. Ltd,F-11 Akshaya Plaza 1St Floor,108 Adhithanar Salai,Egmore Opp To Chief Metropolitan Court,Chennai 600002 | H31: 044-42028512 | I31: chennaimfd@Kfintech.com | J31: Close
A32: 31 | B32: Collection Center | C32: Chennai | D32: T Nagar/Nungambakkam | E32: Tamilnadu | F32: Green Zone | G32: KFin Technologies Pvt. Ltd,No 23 | Cathedral Garden Road,Cathedral Garden Road,Nungambakkam,Chennai,600 034 | H32: 044 - 28309100 | I32: chennaimfd@Kfintech.com | J32: Open
A33: 32 | B33: MFS | C33: Cochin | D33: Alleppy | E33: Kerala | F33: Orange Zone | G33: KFin Technologies Pvt. Ltd,1st Floor Jp Towers,Mullackal,Ksrtc Bus Stand,Alleppy 688011 | H33: 0477 2263055 | I33: mfsalleppy@Kfintech.com | J33: Open
A34: 33 | B34: MFS | C34: Cochin | D34: Calicut | E34: Kerala | F34: Orange Zone | G34: KFin Technologies Pvt. Ltd,Second Floor,Manimuriyil Centre, Bank Road,,Kasaba Village,Calicut 673001 | H34: 0495-4022480 | I34: mfscalicut@Kfintech.com | J34: Open
A35: 34 | B35: MFS | C35: Cochin | D35: Cochin | E35: Kerala | F35: Green Zone | G35: KFin Technologies Pvt. Ltd,Ali Arcade 1St FloorKizhavana Road,Panampilly Nagar,Near Atlantis Junction,Ernakualm 682036 | H35: 0484 - 4025059 | I35: cochinmfd@Kfintech.com | J35: Open
A36: 35 | B36: MFS | C36: Cochin | D36: Kannur | E36: Kerala | F36: Red Zone | G36: KFin Technologies Pvt. Ltd,2ND FLOOR,GLOBAL VILLAGE,BANK ROAD,Kannur 670001 | H36: 0497-2764190 | I36: mfskannur@Kfintech.com | J36: Open
A37: 36 | B37: MFS | C37: Cochin | D37: Kollam | E37: Kerala | F37: Orange Zone | G37: KFin Technologies Pvt. Ltd,GROUND FLOORA NARAYANAN SHOPPING COMPLEX,KAUSTHUBHSREE BLOCK,Kadapakada,Kollam 691008 | H37: 474-2747055 | I37: mfskollam@Kfintech.com | J37: Open
A38: 37 | B38: MFS | C38: Cochin | D38: Kottayam | E38: Kerala | F38: Red Zone | G38: KFin Technologies Pvt. Ltd,1St Floor Csiascension Square,Railway Station Road,Collectorate P O,Kottayam 686002 | H38: 0481-2300868/2302420 | I38: mfskottayam@Kfintech.com | J38: Open
A39: 38 | B39: MFS | C39: Cochin | D39: Malappuram | E39: Kerala | F39: Orange Zone | G39: KFin Technologies Pvt. Ltd,2nd Floor,Peekays Arcade,Down Hill,Malappuram 676505 | H39: 0483-2731480 | I39: mfsmalappuram@Kfintech.com | J39: Open
A40: 39 | B40: MFS | C40: Cochin | D40: Palghat | E40: Kerala | F40: Orange Zone | G40: KFin Technologies Pvt. Ltd,No: 20 & 21 ,Metro Complex H.P.O.Road Palakkad,H.P.O.Road,Palakkad 678001 | H40: 9895968533 | I40: mfspalghat@Kfintech.com | J40: Open
A41: 40 | B41: MFS | C41: Cochin | D41: Tiruvalla | E41: Kerala | F41: Orange Zone | G41: KFin Technologies Pvt. Ltd,2Nd FloorErinjery Complex,Ramanchira,Opp Axis Bank,Thiruvalla 689107 | H41: 04862-211209 | I41: mfstiruvalla@Kfintech.com | J41: Open
A42: 41 | B42: MFS | C42: Cochin | D42: Trichur/Thrissur | E42: Kerala | F42: Orange Zone | G42: KFin Technologies Pvt. Ltd,4TH FLOOR, CROWN TOWER,SHAKTHAN NAGAR,OPP. HEAD POST OFFICE,Thrissur 680001 | H42: 0487- 6999987 | I42: mfstrichur@Kfintech.com | J42: Open
A43: 42 | B43: MFS | C43: Cochin | D43: Trivandrum | E43: Kerala | F43: Orange Zone | G43: KFin Technologies Pvt. Ltd,MARVEL TOWER, 1ST FLOOR,URA-42 STATUE,(UPPALAM ROAD RESIDENCE ASSOCIATION) ,Trivandrum 695010 | H43: 0471 - 2725728 | I43: mfstrivandrum@Kfintech.com | J43: Open
A44: 43 | B44: MFS | C44: Coimbatore | D44: Coimbatore | E44: Tamil Nadu | F44: Green Zone | G44: KFin Technologies Pvt. Ltd,3rd Floor Jaya Enclave,1057 Avinashi Road,-,Coimbatore 641018 | H44: 0422 - 4388011 | I44: mfscoimbatore@Kfintech.com | J44: Open
A45: 44 | B45: MFS | C45: Coimbatore | D45: Dindigul | E45: Tamil Nadu | F45: Red Zone | G45: KFin Technologies Pvt. Ltd,NO 59B New Pensioner street,Palani Road,,Opp Gomathi Lodge,Dindigul 624001 | H45: 0451- 2436177 | I45: mfsdindigul@Kfintech.com | J45: Open
A46: 45 | B46: MFS | C46: Coimbatore | D46: Erode | E46: Tamil Nadu | F46: Red Zone | G46: KFin Technologies Pvt. Ltd,Address No 38/1 Ground Floor,Sathy Road,(VCTV Main Road),Sorna Krishna Complex,Erode 638003 | H46: 0424-4021212 | I46: mfserode@Kfintech.com | J46: Open
A47: 46 | B47: MFS | C47: Coimbatore | D47: Karur | E47: Tamil Nadu | F47: Red Zone | G47: KFin Technologies Pvt. Ltd,No 88/11, BB plaza,NRMP street,K S Mess Back side,Karur 639002 | H47: 04324-241755 | I47: mfskarur@Kfintech.com | J47: Open
A48: 47 | B48: MFS | C48: Coimbatore | D48: Madurai | E48: Tamil Nadu | F48: Red Zone | G48: KFin Technologies Pvt. Ltd,No. G-16/17,AR Plaza, 1st floor,North Veli Street,Madurai 625001 | H48: 0452-2605856 | I48: mfsmadurai@Kfintech.com | J48: Open
A49: 48 | B49: MFS | C49: Coimbatore | D49: Nagerkoil | E49: Tamil Nadu | F49: Orange Zone | G49: KFin Technologies Pvt. Ltd,HNO 45 ,1st Floor,East Car Street ,Nagercoil 629001 | H49: 04652 - 233552 | I49: mfsnagarkoil@Kfintech.com | J49: Open
A50: 49 | B50: MFS | C50: Coimbatore | D50: Pollachi | E50: Tamil Nadu | F50: Orange Zone | G50: KFin Technologies Pvt. Ltd,1st floor,MKG complex,Opp to Gowri Shankar Hotel,-,Pollachi 642001 | H50: 04259- 235111 | I50: mfspollachi@Kfintech.com | J50: Open
A51: 50 | B51: MFS | C51: Coimbatore | D51: Pondicherry | E51: Pondicherry | F51: Orange Zone | G51: KFin Technologies Pvt. Ltd,No 122(10b),Muthumariamman koil street,-,Pondicherry 605001 | H51: 0413-4300710 | I51: mfspondy@Kfintech.com | J51: Open
A52: 51 | B52: MFS | C52: Coimbatore | D52: Salem | E52: Tamil Nadu | F52: Orange Zone | G52: KFin Technologies Pvt. Ltd,NO 3/250 ,Pondicherry - 605001,6th CrossPerumal kovil back side Fairland's,Salem 636016 | H52: 0427-4020300 | I52: mfssalem@Kfintech.com | J52: Open
A53: 52 | B53: MFS | C53: Coimbatore | D53: Thanjavur | E53: Tamil Nadu | F53: Orange Zone | G53: KFin Technologies Pvt. Ltd,No 1, Basement,Nallaiyah Complex,Srinivasam pillai road,Thanjavur 613001 | H53: 04362-275415 | I53: mfsthanjavur@Kfintech.com | J53: Open
A54: 53 | B54: MFS | C54: Coimbatore | D54: Tirunelveli | E54: Tamil Nadu | F54: Red Zone | G54: KFin Technologies Pvt. Ltd,55/18 Jeney Building,S N Road,Near Aravind Eye Hospital,Tirunelveli 627001 | H54: 0462-4001416 | I54: mfstirunelveli@Kfintech.com | J54: Open
A55: 54 | B55: MFS | C55: Coimbatore | D55: Tirupur | E55: Tamil Nadu | F55: Red Zone | G55: KFin Technologies Pvt. Ltd,No 669A,Kamaraj Road,,Near old collector office,,Tirupur 641604 | H55: 0421-2214221 | I55: mfstirupur@Kfintech.com | J55: Close
A56: 55 | B56: MFS | C56: Coimbatore | D56: Trichy | E56: Tamil Nadu | F56: Orange Zone | G56: KFin Technologies Pvt. Ltd,No 23C/1 E V R road, Near Vekkaliamman Kalyana Mandapam,Putthur,-,Trichy 620017 | H56: 0431-4020227 | I56: mfstrichy@Kfintech.com | J56: Open
A57: 56 | B57: MFS | C57: Coimbatore | D57: Tuticorin | E57: Tamil Nadu | F57: Red Zone | G57: KFin Technologies Pvt. Ltd,4 - B A34 - A37,Mangalmal Mani Nagar,Opp. Rajaji Park Palayamkottai Road,Tuticorin 628003 | H57: 0461-2334603 | I57: mfstuticorin@Kfintech.com | J57: Open
A58: 57 | B58: MFS | C58: Coimbatore | D58: Vellore | E58: Tamil Nadu | F58: Containmment | G58: KFin Technologies Pvt. Ltd,No 2/19,1st floor,Vellore city centre,Anna salai,Vellore 632001 | H58: 0416-41603806 | I58: mfsvellore@Kfintech.com | J58: Open
A59: 58 | B59: MFS | C59: Guwahati | D59: Agartala | E59: Tripura | F59: Green Zone | G59: KFin Technologies Pvt. Ltd,OLS RMS CHOWMUHANI,MANTRI BARI ROAD1ST FLOOR NEAR TRAFFIC POINT,TRIPURA WEST,Agartala 799001 | H59: 0381-2317519 | I59: mfsagartala@Kfintech.com | J59: Open
A60: 59 | B60: MFS | C60: Guwahati | D60: Guwahati | E60: Assam | F60: Green Zone | G60: KFin Technologies Pvt. Ltd,1st Floor Bajrangbali Building,Near Bora Service Station GS Road,-,Guwahati 781007 | H60: 8811036746 | I60: mfsguwahati@Kfintech.com | J60: Open
A61: 60 | B61: MFS | C61: Guwahati | D61: Shillong | E61: Meghalaya | F61: Orange Zone | G61: KFin Technologies Pvt. Ltd,Annex Mani Bhawan ,Lower Thana Road ,Near R K M Lp School ,Shillong 793001 | H61: 0364 - 2506106 | I61: mfsshillong@Kfintech.com | J61: Open
A62: 61 | B62: MFS | C62: Guwahati | D62: Silchar | E62: Assam | F62: Green Zone | G62: KFin Technologies Pvt. Ltd,N.N. Dutta Road,Chowchakra Complex,Premtala,Silchar 788001 | H62: 3842261714 | I62: mfssilchar@Kfintech.com | J62: Close
A63: 62 | B63: MFS | C63: Hyderabad | D63: Ananthapur | E63: Andhra Pradesh | F63: Containmment | G63: KFin Technologies Pvt. Ltd,Plot No: 12-313,,Balaji Towers, Suryanagar,Ananthapur Village,Anantapur 515001 | H63: 08554-244449 | I63: mfsananthapur@Kfintech.com | J63: Open
A64: 63 | B64: MFS | C64: Hyderabad | D64: Eluru | E64: Andhra Pradesh | F64: Orange Zone | G64: KFin Technologies Pvt. Ltd,DNO-23A-7-72/73K K S PLAZA MUNUKUTLA VARI STREET,OPP ANDHRA HOSPITALS,R R PETA,Eluru 534002 | H64: 08812-227851 / 52 / 53 / 54 | I64: mfseluru@Kfintech.com | J64: Open
A65: 64 | B65: MFS | C65: Hyderabad | D65: Guntur | E65: Andhra Pradesh | F65: Orange Zone | G65: KFin Technologies Pvt. Ltd,2nd Shatter, 1st Floor,Hno. 6-14-48, 14/2 Lane,,Arundal Pet,Guntur 522002 | H65: 0863-2339094 | I65: mfsguntur@Kfintech.com | J65: Open
A66: 65 | B66: MFS | C66: Hyderabad | D66: Hyderabad | E66: Telangana | F66: Orange Zone | G66: KFin Technologies Pvt. Ltd,No:303, Vamsee Estates,Opp: Bigbazaar,Ameerpet,Hyderabad 500016 | H66: 040-44857874 / 75 / 76 | I66: mfshyderabad@Kfintech.com | J66: Open
A67: 66 | B67: MFS | C67: Hyderabad | D67: Karimnagar | E67: Telangana | F67: Red Zone | G67: KFin Technologies Pvt. Ltd,2nd ShutterHNo. 7-2-607 Sri Matha ,Complex Mankammathota ,-,Karimnagar 505001 | H67: 0878-2244773 | I67: mfskarimnagar@Kfintech.com | J67: Open
A68: 67 | B68: MFS | C68: Hyderabad | D68: Kurnool | E68: Andhra Pradesh | F68: Containmment | G68: KFin Technologies Pvt. Ltd,Shop No:47,2nd Floor,S komda Shoping mall,Kurnool 518001 | H68: 08518-228550 | I68: mfskurnool@Kfintech.com | J68: Open
A69: 68 | B69: MFS | C69: Hyderabad | D69: Nanded | E69: Maharashthra | F69: Red Zone | G69: KFin Technologies Pvt. Ltd,Shop No.4 ,Santakripa Market G G Road,Opp.Bank Of India,Nanded 431601 | H69: 02462-237885 | I69: mfsnanded@Kfintech.com | J69: Open
A70: 69 | B70: MFS | C70: Hyderabad | D70: Nellore | E70: Andhra Pradesh | F70: Orange Zone | G70: KFin Technologies Pvt. Ltd,D No:16-5-66 Ramarao Complex, No:2 Shop No:305,3rd Floor ,Nagula Mitta Rodad,Opp Bank of baroda,Nellore 524001 | H70: 0861 2349940 | I70: mfsnellore@Kfintech.com | J70: Open
A71: 70 | B71: MFS | C71: Hyderabad | D71: Rajahmundry | E71: Andhra Pradesh | F71: Orange Zone | G71: KFin Technologies Pvt. Ltd,D.No.6-1-4Rangachary Street,T.Nagar, Near Axis Bank Street,Rajahmundry 533101 | H71: 0883-2434468/70 | I71: mfsrajahmundry@Kfintech.com | J71: Close
A72: 71 | B72: MFS | C72: Hyderabad | D72: Solapur | E72: Maharashthra | F72: Orange Zone | G72: KFin Technologies Pvt. Ltd,Block No 06,Vaman Nagar Opp D-Mart,Jule Solapur,Solapur 413004 | H72: 0217-2300021 / 2300318 | I72: mfssolapur@Kfintech.com | J72: Open
A73: 72 | B73: MFS | C73: Hyderabad | D73: Srikakulam | E73: Andhra Pradesh | F73: Orange Zone | G73: KFin Technologies Pvt. Ltd,D No 4-4-97 First Floor Behind Sri Vijayaganapathi Temple,Pedda relli veedhi ,Palakonda Road ,Srikakulam 532001 | H73: 8942229925 | I73: mfssrikakulam@Kfintech.com | J73: Open
A74: 73 | B74: MFS | C74: Hyderabad | D74: Tirupathi | E74: Andhra Pradesh | F74: Orange Zone | G74: KFin Technologies Pvt. Ltd,H.No:10-13-425,1st Floor Tilak Road ,Opp: Sridevi Complex ,Tirupathi 517501 | H74: 9885995544 / 0877-2255797 | I74: mfstirupathi@Kfintech.com | J74: Open
A75: 74 | B75: MFS | C75: Hyderabad | D75: Vijayanagaram | E75: Andhra Pradesh | F75: Orange Zone | G75: KFin Technologies Pvt. Ltd,D No : 20-20-29, 1st Floor,Surya Nagar, Kalavapuvvu Meda,Near Ayodhya Stadium, Dharmapuri Road,Vizianagaram 535002 | H75: 08922-236965 | I75: mfsvijayanagaram@Kfintech.com | J75: Open
A76: 75 | B76: MFS | C76: Hyderabad | D76: Vijayawada | E76: Andhra Pradesh | F76: Green Zone | G76: KFin Technologies Pvt. Ltd,HNo26-23, 1st Floor,Sundarammastreet,GandhiNagar, Krishna,Vijayawada 520010 | H76: 0866-6604032/39/40 | I76: vijayawadamfd@Kfintech.com | J76: Open
A77: 76 | B77: MFS | C77: Hyderabad | D77: Visakhapatnam | E77: Andhra Pradesh | F77: Containmment | G77: KFin Technologies Pvt. Ltd,DNO : 48-10-40, GROUND FLOOR, SURYA RATNA ARCADE, SRINAGAR, OPP ROADTO LALITHA JEWELLER SHOWROOM,BESIDE TAJ HOTEL LADGE,Visakhapatnam 530016 | H77: 0891-2714125 | I77: vizagmfd@Kfintech.com | J77: Open
A78: 77 | B78: MFS | C78: Hyderabad | D78: Warangal | E78: Telangana | F78: Orange Zone | G78: KFin Technologies Pvt. Ltd,Shop No22 , ,Ground Floor Warangal City Center,15-1-237,Mulugu Road Junction,Warangal 506002 | H78: 0870-2441513 | I78: mfswarangal@Kfintech.com | J78: Open
A79: 78 | B79: MFS | C79: Hyderabad | D79: Khammam | E79: Telangana | F79: Orange Zone | G79: KFin Technologies Pvt. Ltd,11-4-3/3 Shop No. S-9,1st floor,Srivenkata Sairam Arcade,Old CPI Office Near PriyaDarshini CollegeNehru Nagar ,KHAMMAM 507002 | H79: 8008865802 | I79: mfskhammam@Kfintech.com | J79: Open
A80: 79 | B80: Collection Center | C80: Hyderabad | D80: Hyderabad(Gachibowli) | E80: Telangana | F80: Orange Zone | G80: KFintech Pvt.Ltd,Selenium Plot No: 31 & 32,Tower B Survey No.115/22 115/24 115/25,Financial District Gachibowli Nanakramguda Serilimgampally Mandal,Hyderabad,500032 | H80: 040-33215122 | I80: Aqbal.Anis@Kfintech.com | J80: Open
A81: 80 | B81: MFS | C81: Indore | D81: Akola | E81: Maharashthra | F81: Red Zone | G81: KFin Technologies Pvt. Ltd,Yamuna Tarang Complex Shop No 30,Ground Floor N.H. No- 06 Murtizapur Road,Opp Radhakrishna Talkies,Akola 444004 | H81: 0724-2451874 | I81: mfsakola@Kfintech.com | J81: Open
A82: 81 | B82: MFS | C82: Indore | D82: Amaravathi | E82: Maharashthra | F82: Red Zone | G82: KFin Technologies Pvt. Ltd,Shop No. 21 2nd Floor,Gulshan Tower,Near Panchsheel Talkies Jaistambh Square,Amaravathi 444601 | H82: 0721 2569198 | I82: mfsamaravathi@Kfintech.com | J82: Open
A83: 82 | B83: MFS | C83: Indore | D83: Aurangabad | E83: Maharashthra | F83: Red Zone | G83: KFin Technologies Pvt. Ltd,Shop no B 38,Motiwala Trade Center,Nirala Bazar,Aurangabad 431001 | H83: 0240-2343414 | I83: mfsaurangabad@Kfintech.com | J83: Open
A84: 83 | B84: MFS | C84: Indore | D84: Bhopal | E84: Madhya Pradesh | F84: Red Zone | G84: KFin Technologies Pvt. Ltd,Gurukripa Plaza, Plot No. 48A,Opposite City Hospital, zone-2,M P nagar,Bhopal 462011 | H84: 0755-4092712,0755-4092715 | I84: bhopalmfs@Kfintech.com | J84: Open
A85: 84 | B85: MFS | C85: Indore | D85: Dhule | E85: Maharashthra | F85: Red Zone | G85: KFin Technologies Pvt. Ltd,Ground Floor Ideal Laundry Lane No 4,Khol Galli Near Muthoot Finance,Opp Bhavasar General Store,Dhule 424001 | H85: 02562-282823 | I85: mfsdhule@Kfintech.com | J85: Open
A86: 85 | B86: MFS | C86: Indore | D86: Indore | E86: Madhya Pradesh | F86: Red Zone | G86: KFin Technologies Pvt. Ltd,101,Diamond Trade centre,-,Indore 452001 | H86: 0731-4266828/4218902 | I86: mfsindore@Kfintech.com | J86: Open
A87: 86 | B87: MFS | C87: Indore | D87: Jabalpur | E87: Madhya Pradesh | F87: Red Zone | G87: KFin Technologies Pvt. Ltd,3Rd floor ,R.R. Tower.5 Lajpatkunj,near Tayabali petrol pump ,Jabalpur 482001 | H87: 0761-4923301 | I87: mfsjabalpur@Kfintech.com | J87: Open
A88: 87 | B88: MFS | C88: Indore | D88: Jalgaon | E88: Maharashthra | F88: Red Zone | G88: KFin Technologies Pvt. Ltd,3rd floor,22 Yashodhah,Ring Road,Jalgaon 425001 | H88: 9421521406 | I88: mfsjalgaon@Kfintech.com | J88: Open
A89: 88 | B89: MFS | C89: Indore | D89: Nagpur | E89: Maharashthra | F89: Red Zone | G89: KFin Technologies Pvt. Ltd,Plot No. 2, Block No. B / 1 & 2 , Shree Apratment,Khare Town, Mata Mandir Road,Dharampeth,Nagpur 440010 | H89: 0712-2533040 | I89: nagpurmfd@Kfintech.com | J89: Open
A90: 89 | B90: MFS | C90: Indore | D90: Nasik | E90: Maharashthra | F90: Red Zone | G90: KFin Technologies Pvt. Ltd,S-9 Second Floor,Suyojit Sankul,Sharanpur Road,Nasik 422002 | H90: 0253-6608999 | I90: nasikmfs@Kfintech.com | J90: Open
A91: 90 | B91: MFS | C91: Indore | D91: Ratlam | E91: Madhya Pradesh | F91: Green Zone | G91: KFin Technologies Pvt. Ltd,1 Nagpal Bhawan Free Ganj Road ,Do Batti ,Near Nokia Care ,Ratlam 457001 | H91: 07412-320398 | I91: mfsratlam@Kfintech.com | J91: Open
A92: 91 | B92: MFS | C92: Indore | D92: Sagar | E92: Madhya Pradesh | F92: Green Zone | G92: KFin Technologies Pvt. Ltd,II floor Above shiva kanch mandir.,5 civil lines,Sagar,Sagar 470002 | H92: 07582-402404 | I92: mfssagar@Kfintech.com | J92: Open
A93: 92 | B93: MFS | C93: Indore | D93: Ujjain | E93: Madhya Pradesh | F93: Red Zone | G93: KFin Technologies Pvt. Ltd,Heritage Shop No. 227,87 Vishvavidhyalaya Marg,Station Road,Near ICICI bank Above Vishal Megha Mart,Ujjain 456001 | H93: 0734-4250007 / 08 | I93: mfsujjain@Kfintech.com | J93: Open
A94: 93 | B94: MFS | C94: Kolkata | D94: Asansol | E94: West Bengal | F94: Orange Zone | G94: KFin Technologies Pvt. Ltd,112/N G. T. ROAD BHANGA PACHIL,G.T Road Asansol Pin: 713 303; ,Paschim Bardhaman West Bengal,Asansol 713303 | H94: 0341-2220077 | I94: mfsasansol@Kfintech.com | J94: Open
A95: 94 | B95: MFS | C95: Kolkata | D95: Balasore | E95: Orissa | F95: Red Zone | G95: KFin Technologies Pvt. Ltd,1-B. 1st Floor, Kalinga Hotel Lane,Baleshwar,Baleshwar Sadar,Balasore 756001 | H95: 06782-260503 | I95: mfsbalasore@Kfintech.com | J95: Open
A96: 95 | B96: MFS | C96: Kolkata | D96: Bankura | E96: West Bengal | F96: Green Zone | G96: KFin Technologies Pvt. Ltd,Plot nos- 80/1/ANATUNCHATI MAHALLA 3rd floor,Ward no-24 Opposite P.C Chandra,Bankura town,Bankura 722101 | H96: 9434480586 | I96: mfsbankura@Kfintech.com | J96: Open
A97: 96 | B97: MFS | C97: Kolkata | D97: Berhampur (Or) | E97: Orissa | F97: Red Zone | G97: KFin Technologies Pvt. Ltd, Opp Divya Nandan Kalyan Mandap,3rd Lane Dharam Nagar,Near Lohiya Motor,Berhampur (Or) 760001 | H97: 0680-2228106 | I97: mfsberhampur@Kfintech.com | J97: Open
A98: 97 | B98: MFS | C98: Kolkata | D98: Bhilai | E98: Chatisgarh | F98: Orange Zone | G98: KFin Technologies Pvt. Ltd,Office No.2, 1st Floor,Plot No. 9/6,Nehru Nagar [East],Bhilai 490020 | H98: 0788-2289499 / 2295332 | I98: mfsbhilai@Kfintech.com | J98: Open
A99: 98 | B99: MFS | C99: Kolkata | D99: Bhubaneswar | E99: Orissa | F99: Red Zone | G99: KFin Technologies Pvt. Ltd,A/181 Back Side Of Shivam Honda Show Room,Saheed Nagar,-,Bhubaneswar 751007 | H99: 0674-2548981 | I99: bhubaneswarmfd@Kfintech.com | J99: Open
A100: 99 | B100: MFS | C100: Kolkata | D100: Bilaspur | E100: Chatisgarh | F100: Red Zone | G100: KFin Technologies Pvt. Ltd,Shop.No.306,3rd Floor,ANANDAM PLAZA,Vyapar Vihar Main Road,Bilaspur 495001 | H100: 07752-470070 | I100: mfsbilaspur@Kfintech.com | J100: Open
A101: 100 | B101: MFS | C101: Kolkata | D101: Bokaro | E101: Jharkhand | F101: Orange Zone | G101: KFin Technologies Pvt. Ltd,CITY CENTRE, PLOT NO. HE-07,SECTOR-IV,BOKARO STEEL CITY,Bokaro 827004 | H101: 7542979444 | I101: mfsbokaro@Kfintech.com | J101: Open
A102: 101 | B102: MFS | C102: Kolkata | D102: Burdwan | E102: West Bengal | F102: Orange Zone | G102: KFin Technologies Pvt. Ltd,Anima Bhavan 1st Floor Holding No.-42,Sreepally G. T. Road,West Bengal,Burdwan 713103 | H102: 0342-2665140 | I102: mfsburdwan@Kfintech.com | J102: Open
A103: 102 | B103: MFS | C103: Kolkata | D103: Chinsura | E103: West Bengal | F103: Orange Zone | G103: KFin Technologies Pvt. Ltd,No : 96,PO: CHINSURAH,DOCTORS LANE,Chinsurah 712101 | H103: 033-26810164 | I103: mfschinsura@Kfintech.com | J103: Open
A104: 103 | B104: MFS | C104: Kolkata | D104: Cuttack | E104: Orissa | F104: Red Zone | G104: KFin Technologies Pvt. Ltd,SHOP NO-45,2ND FLOOR,,NETAJI SUBAS BOSE ARCADE,,(BIG BAZAR BUILDING) ADJUSENT TO RELIANCE TRENDS,,DARGHA BAZAR,Cuttack 753001 | H104: 0671-2203077 | I104: mfscuttack@Kfintech.com | J104: Open
A105: 104 | B105: MFS | C105: Kolkata | D105: Dhanbad | E105: Jharkhand | F105: Orange Zone | G105: KFin Technologies Pvt. Ltd,208 New Market 2Nd Floor,Bank More,-,Dhanbad 826001 | H105: 9264445981 | I105: mfsdhanbad@Kfintech.com | J105: Open
A106: 105 | B106: MFS | C106: Kolkata | D106: Durgapur | E106: West Bengal | F106: Orange Zone | G106: KFin Technologies Pvt. Ltd,MWAV-16 BENGAL AMBUJA,2ND FLOOR CITY CENTRE,Distt. BURDWAN Durgapur-16 ,Durgapur 713216 | H106: 0343-6512111 | I106: mfsdurgapur@Kfintech.com | J106: Open
A107: 106 | B107: MFS | C107: Kolkata | D107: Gaya | E107: Bihar | F107: Red Zone | G107: KFin Technologies Pvt. Ltd,Property No. 711045129, Ground FloorHotel Skylark,Swaraipuri Road,-,Gaya 823001 | H107: 0631-2220065 | I107: mfsgaya@Kfintech.com | J107: Open
A108: 107 | B108: MFS | C108: Kolkata | D108: Jalpaiguri | E108: West Bengal | F108: Orange Zone | G108: KFin Technologies Pvt. Ltd,D B C Road Opp Nirala Hotel,Opp Nirala Hotel,Opp Nirala Hotel,Jalpaiguri 735101 | H108: 03561-222136 | I108: mfsjalpaiguri@Kfintech.com | J108: Open
A109: 108 | B109: MFS | C109: Kolkata | D109: Jamshedpur | E109: Jharkhand | F109: Orange Zone | G109: KFin Technologies Pvt. Ltd,Madhukunj, 3rd Floor ,Q Road, Sakchi,Bistupur, East Singhbhum,Jamshedpur 831001 | H109: 0657-6655003/ 6655004/ 6655005/ 6655006/ 6655007 | I109: jamshedpurmfd@Kfintech.com | J109: Open
A110: 109 | B110: MFS | C110: Kolkata | D110: Kharagpur | E110: West Bengal | F110: Orange Zone | G110: KFin Technologies Pvt. Ltd,Holding No 254/220, SBI BUILDING,Malancha Road, Ward No.16, PO: Kharagpur, PS: Kharagpur,Dist: Paschim Medinipur,Kharagpur 721304 | H110: 3222253380 | I110: mfskharagpur@Kfintech.com | J110: Open
A111: 110 | B111: MFS | C111: Kolkata | D111: Kolkata | E111: West Bengal | F111: Red Zone | G111: KFin Technologies Pvt. Ltd,Apeejay House ( Beside Park Hotel ),C Block3rd Floor,15 Park Street ,Kolkata 700016 | H111: 033 66285900 | I111: mfskolkata@Kfintech.com | J111: Open
A112: 111 | B112: MFS | C112: Kolkata | D112: Malda | E112: West Bengal | F112: Red Zone | G112: KFin Technologies Pvt. Ltd,RAM KRISHNA PALLY; GROUND FLOOR,ENGLISH BAZAR,-,Malda 732101 | H112: 03512-223763 | I112: mfsmalda@Kfintech.com | J112: Open
A113: 112 | B113: MFS | C113: Kolkata | D113: Patna | E113: Bihar | F113: Red Zone | G113: KFin Technologies Pvt. Ltd,3A 3Rd Floor Anand Tower,Exhibition Road,Opp Icici Bank,Patna 800001 | H113: 0612-4323066 | I113: mfspatna@Kfintech.com | J113: Open
A114: 113 | B114: MFS | C114: Kolkata | D114: Raipur | E114: Chatisgarh | F114: Red Zone | G114: KFin Technologies Pvt. Ltd,OFFICE NO S-13 SECOND FLOOR REHEJA TOWER,FAFADIH CHOWK,JAIL ROAD,Raipur 492001 | H114: 0771-4912611 | I114: mfsraipur@Kfintech.com | J114: Open
A115: 114 | B115: MFS | C115: Kolkata | D115: Ranchi | E115: Jharkhand | F115: Red Zone | G115: KFin Technologies Pvt. Ltd,Room No 307 3Rd Floor ,Commerce Tower ,Beside Mahabir Tower ,Ranchi 834001 | H115: 0651-2331320 | I115: mfsranchi@Kfintech.com | J115: Open
A116: 115 | B116: MFS | C116: Kolkata | D116: Rourkela | E116: Orissa | F116: Containmment | G116: KFin Technologies Pvt. Ltd,2nd Floor, Main Road,UDIT NAGAR,SUNDARGARH,Rourekla 769012 | H116: 0661-2500005 | I116: mfsrourkela@Kfintech.com | J116: Open
A117: 116 | B117: MFS | C117: Kolkata | D117: Sambalpur | E117: Orissa | F117: Orange Zone | G117: KFin Technologies Pvt. Ltd,First Floor; Shop No. 219,SAHEJ PLAZA,Golebazar; Sambalpur,Sambalpur 768001 | H117: 0663-2533437 | I117: mfssambalpur@Kfintech.com | J117: Open
A118: 117 | B118: MFS | C118: Kolkata | D118: Siliguri | E118: West Bengal | F118: Red Zone | G118: KFin Technologies Pvt. Ltd,Nanak Complex, 2nd Floor,Sevoke Road,-,Siliguri 734001 | H118: 0353-2522579 | I118: mfssiliguri@Kfintech.com | J118: Open
A119: 118 | B119: Collection Center | C119: Kolkata | D119: Dalhousie | E119: West Bengal | F119: Red Zone | G119: KFin Technologies Pvt. Ltd,2Nd Floor Room no-226,R N Mukherjee Road,,Kolkata,700 001 | H119: 033-24659263 | I119: kolkatamfd@Kfintech.com | J119: Close
A120: 119 | B120: MFS | C120: Lucknow | D120: Agra | E120: Uttar Pradesh | F120: Red Zone | G120: KFin Technologies Pvt. Ltd,House No. 17/2/4, 2nd Floor,Deepak Wasan Plaza,Behind Hotel Holiday INN,Sanjay Place,Agra 282002 | H120: 7518801801 | I120: mfsagra@Kfintech.com | J120: Open
A121: 120 | B121: MFS | C121: Lucknow | D121: Aligarh | E121: Uttar Pradesh | F121: Red Zone | G121: KFin Technologies Pvt. Ltd,Sebti Complex Centre Point,Sebti Complex Centre Point,-,Aligarh 202001 | H121: 7518801802 | I121: mfsaligarh@Kfintech.com | J121: Open
A122: 121 | B122: MFS | C122: Lucknow | D122: Allahabad | E122: Uttar Pradesh | F122: Orange Zone | G122: KFin Technologies Pvt. Ltd,Meena Bazar,2nd Floor 10 S.P. Marg Civil Lines,Subhash Chauraha, Prayagraj,Allahabad 211001 | H122: 7518801803 | I122: allahabadmfd@Kfintech.com | J122: Open
A123: 122 | B123: MFS | C123: Lucknow | D123: Ambala | E123: Haryana | F123: Orange Zone | G123: KFin Technologies Pvt. Ltd,6349, 2nd Floor,Nicholson Road,Adjacent Kos Hospitalambala Cant,Ambala 133001 | H123: 7518801804 | I123: mfsambala@Kfintech.com | J123: Open
A124: 123 | B124: MFS | C124: Lucknow | D124: Azamgarh | E124: Uttar Pradesh | F124: Orange Zone | G124: KFin Technologies Pvt. Ltd,House No. 290, Ground Floor,Civil lines, Near Sahara Office,-,Azamgarh 276001 | H124: 7518801805 | I124: mfsazamgarh@Kfintech.com | J124: Open
A125: 124 | B125: MFS | C125: Lucknow | D125: Bareilly | E125: Uttar Pradesh | F125: Red Zone | G125: KFin Technologies Pvt. Ltd,1ST FLOORREAR SIDEA -SQUARE BUILDING,54-CIVIL LINES,Ayub Khan Chauraha,Bareilly 243001 | H125: 7518801806 | I125: mfsbareilly@Kfintech.com | J125: Open
A126: 125 | B126: MFS | C126: Lucknow | D126: Begusarai | E126: Bihar | F126: Orange Zone | G126: KFin Technologies Pvt. Ltd,C/o Dr Hazari Prasad Sahu,Ward No 13, Behind Alka Cinema,Begusarai (Bihar),Begusarai 851117 | H126: 7518801807 | I126: mfsbegusarai@Kfintech.com | J126: Close
A127: 126 | B127: MFS | C127: Lucknow | D127: Bhagalpur | E127: Bihar | F127: Orange Zone | G127: KFin Technologies Pvt. Ltd,2Nd Floor,Chandralok ComplexGhantaghar,Radha Rani Sinha Road,Bhagalpur 812001 | H127: 7518801808 | I127: mfsbhagalpur@Kfintech.com | J127: Open
A128: 127 | B128: MFS | C128: Lucknow | D128: Darbhanga | E128: Bihar | F128: Orange Zone | G128: KFin Technologies Pvt. Ltd,Jaya Complex2Nd Floor,Above Furniture PlanetDonar,Chowk,Darbhanga 846003 | H128: 7518801809 | I128: mfsdarbhanga@Kfintech.com | J128: Open
A129: 128 | B129: MFS | C129: Lucknow | D129: Dehradun | E129: Uttaranchal | F129: Orange Zone | G129: KFin Technologies Pvt. Ltd,Kaulagarh Road,Near Sirmaur Margabove,Reliance Webworld,Dehradun 248001 | H129: 7518801810 | I129: dehradunmfd@Kfintech.com | J129: Open
A130: 129 | B130: MFS | C130: Lucknow | D130: Deoria | E130: Uttar pradesh | F130: Red Zone | G130: KFin Technologies Pvt. Ltd,K. K. Plaza,Above Apurwa Sweets,Civil Lines Road,Deoria 274001 | H130: 7518801811 | I130: mfsdeoria@Kfintech.com | J130: Open
A131: 130 | B131: MFS | C131: Lucknow | D131: Faridabad | E131: Haryana | F131: Red Zone | G131: KFin Technologies Pvt. Ltd,A-2B 3rd Floor,Neelam Bata Road Peer ki Mazar,Nehru Groundnit,Faridabad 121001 | H131: 7518801812 | I131: mfsfaridabad@Kfintech.com | J131: Open
A132: 131 | B132: MFS | C132: Lucknow | D132: Ghaziabad | E132: Uttar Pradesh | F132: Red Zone | G132: KFin Technologies Pvt. Ltd,FF - 31, Konark Building,Rajnagar,-,Ghaziabad 201001 | H132: 7518801813 | I132: mfsghaziabad@Kfintech.com | J132: Open
A133: 132 | B133: MFS | C133: Lucknow | D133: Ghazipur | E133: Uttar Pradesh | F133: Orange Zone | G133: KFin Technologies Pvt. Ltd,House No. 148/19,Mahua Bagh,-,Ghazipur 233001 | H133: 7518801814 | I133: mfsghazipur@Kfintech.com | J133: Open
A134: 133 | B134: MFS | C134: Lucknow | D134: Gonda | E134: Uttar Pradesh | F134: Red Zone | G134: KFin Technologies Pvt. Ltd,H No 782,Shiv Sadan,ITI Road,Near Raghukul Vidyapeeth,Civil lines,Gonda 271001 | H134: 7518801815 | I134: mfsgonda@Kfintech.com | J134: Open
A135: 134 | B135: MFS | C135: Lucknow | D135: Gorakhpur | E135: Uttar Pradesh | F135: Red Zone | G135: KFin Technologies Pvt. Ltd,Above V.I.P. House ajdacent,A.D. Girls College,Bank Road,Gorakpur 273001 | H135: 7518801816 | I135: mfsgorakhpur@Kfintech.com | J135: Open
A136: 135 | B136: MFS | C136: Lucknow | D136: Gurgaon | E136: Haryana | F136: Red Zone | G136: KFin Technologies Pvt. Ltd,No: 212A, 2nd Floor, Vipul Agora,M. G. Road,-,Gurgaon 122001 | H136: 7518801817 | I136: mfsgurgaon@Kfintech.com | J136: Open
A137: 136 | B137: MFS | C137: Lucknow | D137: Gwalior | E137: Madhya Pradesh | F137: Green Zone | G137: KFin Technologies Pvt. Ltd,City Centre,Near Axis Bank,-,Gwalior 474011 | H137: 7518801818 | I137: mfsgwalior@Kfintech.com | J137: Open
A138: 137 | B138: MFS | C138: Lucknow | D138: Haldwani | E138: Uttaranchal | F138: Orange Zone | G138: KFin Technologies Pvt. Ltd,Shoop No 5,KMVN Shoping Complex,-,Haldwani 263139 | H138: 7518801819 | I138: mfshaldwani@Kfintech.com | J138: Open
A139: 138 | B139: MFS | C139: Lucknow | D139: Haridwar | E139: Uttaranchal | F139: Orange Zone | G139: KFin Technologies Pvt. Ltd,Shop No. - 17,Bhatia Complex,Near Jamuna Palace,Haridwar 249410 | H139: 7518801820 | I139: mfsharidwar@Kfintech.com | J139: Open
A140: 139 | B140: MFS | C140: Lucknow | D140: Hissar | E140: Haryana | F140: Orange Zone | G140: KFin Technologies Pvt. Ltd,Shop No. 20, Ground Floor,R D City Centre,Railway Road,Hissar 125001 | H140: 7518801821 | I140: mfshissar@Kfintech.com | J140: Open
A141: 140 | B141: MFS | C141: Lucknow | D141: Jaunpur | E141: Uttar Pradesh | F141: Red Zone | G141: KFin Technologies Pvt. Ltd,R N Complex 1-1-9-G,R. N. Complex, Opposite Pathak Honda,Above Oriental Bank of Commerce,Jaunpur 222002 | H141: 7518801822 | I141: mfsjaunpur@Kfintech.com | J141: Open
A142: 141 | B142: MFS | C142: Lucknow | D142: Jhansi | E142: Uttar Pradesh | F142: Orange Zone | G142: KFin Technologies Pvt. Ltd,1st Floor, Puja Tower,Near 48 Chambers,ELITE Crossing,Jhansi 284001 | H142: 7518801823 | I142: mfsjhansi@Kfintech.com | J142: Open
A143: 142 | B143: MFS | C143: Lucknow | D143: Kanpur | E143: Uttar Pradesh | F143: Red Zone | G143: KFin Technologies Pvt. Ltd,15/46 B Ground Floor,Opp : Muir Mills,Civil Lines,Kanpur 208001 | H143: 7518801824 | I143: kanpurmfd@Kfintech.com | J143: Open
A144: 143 | B144: MFS | C144: Lucknow | D144: Korba | E144: Chatisgarh | F144: Orange Zone | G144: KFin Technologies Pvt. Ltd,Nidhi Biz Complex,Plot No 5, Near Patidar Bhawan,T. P. Nagar,Korba 495677 | H144: 7518801826 | I144: mfskorba@Kfintech.com | J144: Open
A145: 144 | B145: MFS | C145: Lucknow | D145: Lucknow | E145: Uttar Pradesh | F145: Red Zone | G145: KFin Technologies Pvt. Ltd,Ist Floor,A. A. Complex,5 Park Road Hazratganj Thaper House,Lucknow 226001 | H145: 7518801830 | I145: lucknowmfd@Kfintech.com | J145: Open
A146: 145 | B146: MFS | C146: Lucknow | D146: Mandi | E146: Uttar Pradesh | F146: Orange Zone | G146: KFin Technologies Pvt. Ltd, House No. 99/11, 3rd Floor,Opposite GSS Boy School,School Bazar,Mandi 175001 | H146: 7518801833 | I146: mfsmandi@Kfintech.com | J146: Open
A147: 146 | B147: MFS | C147: Lucknow | D147: Mathura | E147: Uttar Pradesh | F147: Red Zone | G147: KFin Technologies Pvt. Ltd,Shop No. 9, Ground Floor, Vihari Lal Plaza,Opposite Brijwasi Centrum,Near New Bus Stand,Mathura 281001 | H147: 7518801834 | I147: mfsmathura@Kfintech.com | J147: Open
A148: 147 | B148: MFS | C148: Lucknow | D148: Meerut | E148: Uttar Pradesh | F148: Red Zone | G148: KFin Technologies Pvt. Ltd,H No 5,Purva Eran, Opp Syndicate Bank,Hapur Road,Meerut 250002 | H148: 7518801835 | I148: mfsmeerut@Kfintech.com | J148: Open
A149: 148 | B149: MFS | C149: Lucknow | D149: Mirzapur | E149: Uttar Pradesh | F149: Green Zone | G149: KFin Technologies Pvt. Ltd,House No. 404,Ward No. 8,Dankeenganj, Mirzapur,Mirzapur 231001 | H149: 7518801836 | I149: mfsmirzapur@Kfintech.com | J149: Open
A150: 149 | B150: MFS | C150: Lucknow | D150: Moradabad | E150: Uttar Pradesh | F150: Red Zone | G150: KFin Technologies Pvt. Ltd,Chadha Complex,G. M. D. Road,Near Tadi Khana Chowk,Moradabad 244001 | H150: 7518801837 | I150: mfsmoradabad@Kfintech.com | J150: Open
A151: 150 | B151: MFS | C151: Lucknow | D151: Morena | E151: Madhya Pradesh | F151: Green Zone | G151: KFin Technologies Pvt. Ltd,House No. HIG 959,Near Court,Front of Dr. Lal Lab,Old Housing Board Colony,Morena 476001 | H151: 7518801838 | I151: mfsmorena@Kfintech.com | J151: Open
A152: 151 | B152: MFS | C152: Lucknow | D152: Muzaffarpur | E152: Bihar | F152: Green Zone | G152: KFin Technologies Pvt. Ltd,First Floor Saroj Complex ,Diwam Road,Near Kalyani Chowk,Muzaffarpur 842001 | H152: 7518801839 | I152: mfsmuzaffarpur@Kfintech.com | J152: Open
A153: 152 | B153: MFS | C153: Lucknow | D153: Noida | E153: Uttar Pradesh | F153: Red Zone | G153: KFin Technologies Pvt. Ltd,F-21,2nd Floor,Near Kalyan Jewelers,Sector-18,Noida 201301 | H153: 7518801840 | I153: mfsnoida@Kfintech.com | J153: Open
A154: 153 | B154: MFS | C154: Lucknow | D154: Panipat | E154: Haryana | F154: Orange Zone | G154: KFin Technologies Pvt. Ltd,Preet Tower, 3rd Floor,Near NK Tower,G.T. Road,Panipat 132103 | H154: 7518801841 | I154: mfspanipat@Kfintech.com | J154: Open
A155: 154 | B155: MFS | C155: Lucknow | D155: Renukoot | E155: Uttar Pradesh | F155: Green Zone | G155: KFin Technologies Pvt. Ltd,C/o Mallick Medical Store,Bangali Katra Main Road,Dist. Sonebhadra (U.P.),Renukoot 231217 | H155: 7518801842 | I155: mfsrenukoot@Kfintech.com | J155: Open
A156: 155 | B156: MFS | C156: Lucknow | D156: Rewa | E156: Madhya Pradesh | F156: Orange Zone | G156: KFin Technologies Pvt. Ltd,Shop No. 2, Shree Sai Anmol Complex,Ground Floor,Opp Teerth Memorial Hospital,Rewa 486001 | H156: 7518801843 | I156: mfsrewa@Kfintech.com | J156: Open
A157: 156 | B157: MFS | C157: Lucknow | D157: Rohtak | E157: Haryana | F157: Orange Zone | G157: KFin Technologies Pvt. Ltd,Shop No 14, Ground Floor,Ashoka Plaza,Delhi Road ,Rohtak 124001 | H157: 7518801844 | I157: mfsrohtak@Kfintech.com | J157: Open
A158: 157 | B158: MFS | C158: Lucknow | D158: Roorkee | E158: Uttaranchal | F158: Orange Zone | G158: KFin Technologies Pvt. Ltd,Shree Ashadeep Complex 16,Civil Lines,Near Income Tax Office,Roorkee 247667 | H158: 7518801845 | I158: mfsroorkee@Kfintech.com | J158: Open
A159: 158 | B159: MFS | C159: Lucknow | D159: Saharanpur | E159: Uttar Pradesh | F159: Red Zone | G159: KFin Technologies Pvt. Ltd,18 Mission Market,Court Road,-,Saharanpur 247001 | H159: 7518801846 | I159: mfssaharanpur@Kfintech.com | J159: Open
A160: 159 | B160: MFS | C160: Lucknow | D160: Satna | E160: Madhya Pradesh | F160: Orange Zone | G160: KFin Technologies Pvt. Ltd,Jainam Market,Purana Power House Chauraha,Panni Lal Chowk,Satna 485001 | H160: 7518801847 | I160: mfssatna@Kfintech.com | J160: Open
A161: 160 | B161: MFS | C161: Lucknow | D161: Shimla | E161: Himachal Pradesh | F161: Green Zone | G161: KFin Technologies Pvt. Ltd,1st Floor,Hills View Complex,Near Tara Hall,Shimla 171001 | H161: 7518801849 | I161: mfsshimla@Kfintech.com | J161: Open
A162: 161 | B162: MFS | C162: Lucknow | D162: Shivpuri | E162: Madhya Pradesh | F162: Green Zone | G162: KFin Technologies Pvt. Ltd,A. B. Road,In Front of Sawarkar Park,Near Hotel Vanasthali,Shivpuri 473551 | H162: 7518801850 | I162: mfsshivpuri@Kfintech.com | J162: Open
A163: 162 | B163: MFS | C163: Lucknow | D163: Sitapur | E163: Uttar Pradesh | F163: Red Zone | G163: KFin Technologies Pvt. Ltd,12/12 Surya Complex,Station Road ,Uttar Pradesh,Sitapur 261001 | H163: 7518801851 | I163: mfssitapur@Kfintech.com | J163: Open
A164: 163 | B164: MFS | C164: Lucknow | D164: Solan | E164: Himachal Pradesh | F164: Orange Zone | G164: KFin Technologies Pvt. Ltd,Disha Complex, 1St Floor,Above Axis Bank,Rajgarh Road,Solan 173212 | H164: 7518801852 | I164: mfssolan@Kfintech.com | J164: Open
A165: 164 | B165: MFS | C165: Lucknow | D165: Sonepat | E165: Haryana | F165: Red Zone | G165: KFin Technologies Pvt. Ltd,2nd floor,DP Tower, Model Town,Near Subhash Chowk,Sonepat 131001 | H165: 7518801853 | I165: mfssonepat@Kfintech.com | J165: Open
A166: 165 | B166: MFS | C166: Lucknow | D166: Sultanpur | E166: Uttar Pradesh | F166: Orange Zone | G166: KFin Technologies Pvt. Ltd,1st Floor, Ramashanker Market,Civil Line,-,Sultanpur 228001 | H166: 7518801854 | I166: mfssultanpur@Kfintech.com | J166: Open
A167: 166 | B167: MFS | C167: Lucknow | D167: Varanasi | E167: Uttar Pradesh | F167: Red Zone | G167: KFin Technologies Pvt. Ltd,D-64/132, 2nd Floor ,KA, Mauza, Shivpurwa, Settlement Plot No 478 Pargana, Dehat Amanat, Mohalla Sigra,Varanashi 221010 | H167: 7518801855 | I167: varanasimfd@Kfintech.com | J167: Open
A168: 167 | B168: MFS | C168: Lucknow | D168: Yamuna Nagar | E168: Haryana | F168: Orange Zone | G168: KFin Technologies Pvt. Ltd,B-V, 185/A, 2nd Floor, Jagadri Road,,Near DAV Girls College, (UCO Bank Building) Pyara Chowk,-,Yamuna Nagar 135001 | H168: 7518801857 | I168: mfsyamunanagar@Kfintech.com | J168: Open
A169: 168 | B169: MFS | C169: Mumbai | D169: Kolhapur | E169: Maharashthra | F169: Orange Zone | G169: KFin Technologies Pvt. Ltd,605/1/4 E Ward Shahupuri 2Nd Lane,Laxmi Niwas,Near Sultane Chambers,Kolhapur 416001 | H169: 0231 2653656 | I169: mfskolhapur@Kfintech.com | J169: Open
A170: 169 | B170: MFS | C170: Mumbai | D170: Mumbai | E170: Maharashthra | F170: Containmment | G170: KFin Technologies Pvt. Ltd,24/B Raja Bahadur Compound,Ambalal Doshi Marg,Behind Bse Bldg,Fort 400001 | H170: 022-66235353 | I170: mumbaimfd@Kfintech.com | J170: Open
A171: 170 | B171: MFS | C171: Mumbai | D171: Pune | E171: Maharashthra | F171: Red Zone | G171: KFin Technologies Pvt. Ltd,Office # 207-210, second floor,Kamla Arcade, JM Road. Opposite Balgandharva,Shivaji Nagar,Pune 411005 | H171: 020-66210449 | I171: punemfd@Kfintech.com | J171: Open
A172: 171 | B172: Collection Center | C172: Mumbai | D172: Vashi | E172: Maharashtra | F172: Red Zone | G172: KFin Technologies Pvt. Ltd,Vashi Plaza,Shop no. 324,C Wing, 1ST Floor,Sector 17,Vashi Mumbai,400705 | H172: 022 27802684 | I172: Vashiext.mum@Kfintech.com | J172: Open
A173: 172 | B173: Collection Center | C173: Mumbai | D173: Vile Parle | E173: Maharashtra | F173: Containmment | G173: KFin Technologies Pvt. Ltd,Shop No.1 Ground Floor,,Dipti Jyothi Co-operative Housing Society,,Near MTNL office P M Road,,Vile Parle East,400057 | H173: 022-26100967 | I173: VileParleext.mum@Kfintech.com | J173: Open
A174: 173 | B174: Collection Center | C174: Mumbai | D174: Borivali | E174: Maharashtra | F174: Red Zone | G174: KFin Technologies Pvt. Ltd,Gomati SmutiGround Floor,Jambli Gully,Near Railway Station ,Borivali Mumbai,400 092 | H174: 022- 28916319 | I174: Borivaliext.mum@Kfintech.com | J174: Open
A175: 174 | B175: Collection Center | C175: Mumbai | D175: Thane | E175: Maharashtra | F175: Containmment | G175: KFin Technologies Pvt. Ltd,Room No. 302 3rd FloorGanga Prasad,Near RBL Bank Ltd,Ram Maruti Cross RoadNaupada Thane West ,Mumbai,400602 | H175: 022 25303013 | I175: Thaneext.mum@Kfintech.com | J175: Open
A176: 175 | B176: MFS | C176: New Delhi | D176: Ajmer | E176: Rajasthan | F176: Red Zone | G176: KFin Technologies Pvt. Ltd,302 3rd Floor,Ajmer Auto Building,Opposite City Power House,Jaipur Road; Ajmer 305001 | H176: 0145-5120725 | I176: mfsajmer@Kfintech.com | J176: Open
A177: 176 | B177: MFS | C177: New Delhi | D177: Alwar | E177: Rajasthan | F177: Orange Zone | G177: KFin Technologies Pvt. Ltd,Office Number 137, First Floor,Jai Complex,Road No-2,Alwar 301001 | H177: 0144-4901131 | I177: mfsalwar@Kfintech.com | J177: Open
A178: 177 | B178: MFS | C178: New Delhi | D178: Amritsar | E178: Punjab | F178: Red Zone | G178: KFin Technologies Pvt. Ltd,SCO 5 ,2nd Floor, District Shopping Complex,Ranjit Avenue,Amritsar 143001 | H178: 0183-5053802 | I178: mfsamritsar@Kfintech.com | J178: Open
A179: 178 | B179: MFS | C179: New Delhi | D179: Bhatinda | E179: Punjab | F179: Green Zone | G179: KFin Technologies Pvt. Ltd,MCB -Z-3-01043, 2 floor, GONIANA ROAD,OPPORITE NIPPON INDIA MF GT ROAD,NEAR HANUMAN CHOWK,Bhatinda 151001 | H179: 0164- 5006725 | I179: mfsbhatinda@Kfintech.com | J179: Open
A180: 179 | B180: MFS | C180: New Delhi | D180: Bhilwara | E180: Rajasthan | F180: Orange Zone | G180: KFin Technologies Pvt. Ltd,Office No. 14 B, Prem Bhawan,Pur Road, Gandhi Nagar,Near CanaraBank,Bhilwara 311001 | H180: 01482-246362 / 246364 | I180: mfsbhilwara@Kfintech.com | J180: Open
A181: 180 | B181: MFS | C181: New Delhi | D181: Bikaner | E181: Rajasthan | F181: Orange Zone | G181: KFin Technologies Pvt. Ltd,70-71 2Nd Floor | Dr.Chahar Building ,Panchsati Circle,Sadul Ganj ,Bikaner 334003 | H181: 0151-2200014 | I181: mfsbikaner@Kfintech.com | J181: Open
A182: 181 | B182: MFS | C182: New Delhi | D182: Chandigarh | E182: Union Territory | F182: Red Zone | G182: KFin Technologies Pvt. Ltd,First floor, SCO 2469-70,Sec. 22-C,-,Chandigarh 160022 | H182: 1725101342 | I182: chandigarhmfd@Kfintech.com | J182: Open
A183: 182 | B183: MFS | C183: New Delhi | D183: Ferozpur | E183: Punjab | F183: Orange Zone | G183: KFin Technologies Pvt. Ltd,The Mall Road Chawla Bulding Ist Floor,Opp. Centrail Jail,Near Hanuman Mandir,Ferozepur 152002 | H183: 01632-241814 | I183: mfsferozpur@Kfintech.com | J183: Open
A184: 183 | B184: MFS | C184: New Delhi | D184: Hoshiarpur | E184: Punjab | F184: Orange Zone | G184: KFin Technologies Pvt. Ltd,Unit # SF-6,The Mall Complex,2nd Floor , Opposite Kapila Hospital,Sutheri Road,Hoshiarpur 146001 | H184: 01882-500143 | I184: mfshoshiarpur@Kfintech.com | J184: Open
A185: 184 | B185: MFS | C185: New Delhi | D185: Jaipur | E185: Rajasthan | F185: Red Zone | G185: KFin Technologies Pvt. Ltd,Office no 101, 1st Floor,Okay Plus Tower,Next to Kalyan Jewellers,Government Hostel Circle, Ajmer Road,Jaipur 302001 | H185: 01414167715/17 | I185: jaipurmfd@Kfintech.com | J185: Open
A186: 185 | B186: MFS | C186: New Delhi | D186: Jalandhar | E186: Punjab | F186: Red Zone | G186: KFin Technologies Pvt. Ltd,Office No 7, 3rd Floor, City Square building,E-H197 Civil Line,Next to Kalyan Jewellers,Jalandhar 144001 | H186: 0181-5094410 | I186: mfsjalandhar@Kfintech.com | J186: Open
A187: 186 | B187: MFS | C187: New Delhi | D187: Jammu | E187: Jammu & Kashmir | F187: Orange Zone | G187: KFin Technologies Pvt. Ltd,Gupta’s Tower, CB-12, 2nd Floor,Government Hostel Circle,,Rail Head complex,Jammu 180012 | H187: 0191-2458820 / 2458818 | I187: mfsjammu@Kfintech.com | J187: Open
A188: 187 | B188: MFS | C188: New Delhi | D188: Jodhpur | E188: Rajasthan | F188: Red Zone | G188: KFin Technologies Pvt. Ltd,Shop No. 6, GANG TOWER, G Floor,OPPOSITE ARORA MOTER SERVICE CENTRE,NEAR BOMBAY MOTER CIRCLE,Jodhpur 342003 | H188: 7737014590 | I188: mfsjodhpur@Kfintech.com | J188: Open
A189: 188 | B189: MFS | C189: New Delhi | D189: Karnal | E189: Haryana | F189: Orange Zone | G189: KFin Technologies Pvt. Ltd,18/369Char Chaman,Kunjpura Road,Behind Miglani Hospital,Karnal 132001 | H189: 0184-2252524 | I189: mfskarnal@Kfintech.com | J189: Open
A190: 189 | B190: MFS | C190: New Delhi | D190: Kota | E190: Rajasthan | F190: Red Zone | G190: KFin Technologies Pvt. Ltd,D-8, SHRI RAM COMPLEX,OPPOSITE MULTI PURPOSE SCHOOL,GUMANPUR,Kota 324007 | H190: 0744-5100964 | I190: mfskota@Kfintech.com | J190: Open
A191: 190 | B191: MFS | C191: New Delhi | D191: Ludhiana | E191: Punjab | F191: Red Zone | G191: KFin Technologies Pvt. Ltd,SCO 122, Second floor,Above Hdfc Mutual fun,,Feroze Gandhi Market,Ludhiana 141001 | H191: 0161-4670278 | I191: mfsludhiana@Kfintech.com | J191: Open
A192: 191 | B192: MFS | C192: New Delhi | D192: Moga | E192: Punjab | F192: Orange Zone | G192: KFin Technologies Pvt. Ltd,1St FloorDutt Road,Mandir Wali Gali,Civil Lines Barat Ghar ,Moga 142001 | H192: 01636 - 230792 | I192: mfsmoga@Kfintech.com | J192: Open
A193: 192 | B193: MFS | C193: New Delhi | D193: New Delhi | E193: New Delhi | F193: Red Zone | G193: KFin Technologies Pvt. Ltd,305 New Delhi House ,27 Barakhamba Road ,-,New Delhi 110001 | H193: 011- 43681700 | I193: delhimfd@Kfintech.com | J193: Open
A194: 193 | B194: MFS | C194: New Delhi | D194: Pathankot | E194: Punjab | F194: Orange Zone | G194: KFin Technologies Pvt. Ltd,2nd Floor Sahni Arcade Complex,Adj.Indra colony Gate Railway Road,Pathankot,Pathankot 145001 | H194: 0186-5080188 | I194: mfspathankot@Kfintech.com | J194: Open
A195: 194 | B195: MFS | C195: New Delhi | D195: Patiala | E195: Punjab | F195: Red Zone | G195: KFin Technologies Pvt. Ltd,B- 17/423,Lower Mall Patiala,Opp Modi College,Patiala 147001 | H195: 0175-5004349 | I195: mfspatiala@Kfintech.com | J195: Open
A196: 195 | B196: MFS | C196: New Delhi | D196: Sikar | E196: Rajasthan | F196: Orange Zone | G196: KFin Technologies Pvt. Ltd,First FloorSuper Tower ,Behind Ram Mandir Near Taparya Bagichi ,-,Sikar 332001 | H196: 01572-250398 | I196: mfssikar@Kfintech.com | J196: Open
A197: 196 | B197: MFS | C197: New Delhi | D197: Sri Ganganagar | E197: Rajasthan | F197: Green Zone | G197: KFin Technologies Pvt. Ltd,Address Shop No. 5, Opposite Bihani Petrol Pump,NH - 15,near Baba Ramdev Mandir,Sri Ganganagar 335001 | H197: 0154-2470177 | I197: mfssriganganagar@Kfintech.com | J197: Open
A198: 197 | B198: MFS | C198: New Delhi | D198: Udaipur | E198: Rajasthan | F198: Orange Zone | G198: KFin Technologies Pvt. Ltd,Shop No. 202, 2nd Floor business centre,1C Madhuvan,Opp G P O Chetak Circle ,Udaipur 313001 | H198: 0294 2429370 | I198: mfsudaipur@Kfintech.com | J198: Open
